Body Name,Body,Service Division Label,Service Division Code,Organisational Unit,Expenditure Category,Expenditure Code,CIPFA detailed expediture type,CIPFA detailed expediture code,Narrative,Date,Transaction number,Net Amount,Capital and Revenue,Supplier Name,Supplier ID
Chorley Borough Council,http://statistics.data.gov.uk/id/local-authority/30UE,Capital,Capital,Housing,Grants,3002,Capital Expenditure,Capital,ADDRESS REDACTED,22/04/2015,102646,"3,458.00",Capital,Accessible Bathroom Solutions Ltd,58149
Chorley Borough Council,http://statistics.data.gov.uk/id/local-authority/30UE,Central Support Services,1009,Health Environment & Neighbourhoods,Rent/Hire Of Premises,20017,Premises Rents,5007,Hire of clayton green sports centre on Friday nights in April,29/04/2015,102805,270.00,Revenue,Active Nation UK Ltd,17144
Chorley Borough Council,http://statistics.data.gov.uk/id/local-authority/30UE,Democratic Represent and  Mgnt,1007,Streetscene & Leisure Contracts,External Contractor - Trust or Charity,50008,Private Contractors,5042,Active Nation Monthly Management Fee For the Period April 2015 - March 2016.Monthly Fee to be invoiced at the beginning,29/04/2015,102868,"31,211.54",Revenue,Active Nation UK Ltd,17144
Chorley Borough Council,http://statistics.data.gov.uk/id/local-authority/30UE,Central Support Services,1009,Health Environment & Neighbourhoods,Sports Development Initiatives,40186,Miscellaneous Expenses,5034,Delivery of Dance sessions at Clayton-le-Woods Primary Feb to March Term,29/04/2015,102693,320.00,Revenue,Adele Bannister,19442
Chorley Borough Council,http://statistics.data.gov.uk/id/local-authority/30UE,Democratic Represent and  Mgnt,1007,Streetscene & Leisure Contracts,Supplies-Grounds Maintenance,40025,"Equipment, Furniture & Materia",5023,"Manufacture and installation of 6 nr single perch benches, constructed from french oak.  2600mm long as per drawing.",29/04/2015,102873,"1,208.00",Revenue,Adlington Dry Stone Walling,63372
Chorley Borough Council,http://statistics.data.gov.uk/id/local-authority/30UE,Democratic Represent and  Mgnt,1007,Streetscene & Leisure Contracts,Supplies-Grounds Maintenance,40025,"Equipment, Furniture & Materia",5023,Materials,29/04/2015,102873,682.00,Revenue,Adlington Dry Stone Walling,63372
Chorley Borough Council,http://statistics.data.gov.uk/id/local-authority/30UE,Payments of Precepts to Parish,1018,"Customer, ICT & Transactional",Parish Council Tax,4500,Revenue Account Transfers,Balance,Precepts,17/04/2015,102579,"15,684.00",Revenue,Adlington Town Council,17626
Chorley Borough Council,http://statistics.data.gov.uk/id/local-authority/30UE,Corporate Management,1008,"Customer, ICT & Transactional",Contributions Parish Councils,40144,Grants and Subscriptions,5031,Precepts,17/04/2015,102579,"1,816.00",Revenue,Adlington Town Council,17626
Chorley Borough Council,http://statistics.data.gov.uk/id/local-authority/30UE,Unapportionable Central OHeads,1009,Governance,Burglar Alarms & Security Systems,20075,Fixtures and Fittings,5010,Supply of 100 Access Cards for use with Excelsior Access System,15/04/2015,102216,465.00,Revenue,ADT Fire & Security,16645
Chorley Borough Council,http://statistics.data.gov.uk/id/local-authority/30UE,Unapportionable Central OHeads,1009,Governance,Burglar Alarms & Security Systems,20075,Fixtures and Fittings,5010,invoice number 29145077-10 CCTV at Union St docket ref CL567659 18/02/15 and docket ref CL623832,15/04/2015,102238,763.25,Revenue,ADT Fire & Security,16645
Chorley Borough Council,http://statistics.data.gov.uk/id/local-authority/30UE,Unapportionable Central OHeads,1009,Governance,Burglar Alarms & Security Systems,20075,Fixtures and Fittings,5010,Supply of additional door controllers to the Town Hall Access system,24/04/2015,102783,"2,035.55",Revenue,ADT Fire & Security,16645
Chorley Borough Council,http://statistics.data.gov.uk/id/local-authority/30UE,Unapportionable Central OHeads,1009,Governance,Burglar Alarms & Security Systems,20075,Fixtures and Fittings,5010,3248092 additional work on access control system,24/04/2015,102784,865.00,Revenue,ADT Fire & Security,16645
Chorley Borough Council,http://statistics.data.gov.uk/id/local-authority/30UE,Service Management & Support,1009,Streetscene & Leisure Contracts,Vehicle Maintenance,30045,Direct Transport Costs,5016,Supply service parts only for service on Schmidt Swingo 200 ,10/04/2015,102159,436.81,Revenue,Aebi Schmidt UK Ltd,17287
Chorley Borough Council,http://statistics.data.gov.uk/id/local-authority/30UE,Service Management & Support,1009,Streetscene & Leisure Contracts,Vehicle Maintenance,30045,Direct Transport Costs,5016,Supply front n/s/f  shock absorber for Swingo 200 as discussed with Simon Part No 1055235-0,22/04/2015,102593,454.18,Revenue,Aebi Schmidt UK Ltd,17287
Chorley Borough Council,http://statistics.data.gov.uk/id/local-authority/30UE,Service Management & Support,1009,Streetscene & Leisure Contracts,Vehicle Maintenance,30045,Direct Transport Costs,5016,Carriage for shock absorber,22/04/2015,102593,10.00,Revenue,Aebi Schmidt UK Ltd,17287
Chorley Borough Council,http://statistics.data.gov.uk/id/local-authority/30UE,Unapportionable Central OHeads,1009,"Customer, ICT & Transactional",Bank Charges,40151,Miscellaneous Expenses,5034,Additional Account Fee,22/04/2015,102382,10.00,Revenue,Allpay Net Ltd,17242
Chorley Borough Council,http://statistics.data.gov.uk/id/local-authority/30UE,Unapportionable Central OHeads,1009,"Customer, ICT & Transactional",Bank Charges,40151,Miscellaneous Expenses,5034,Post Office Transactions,22/04/2015,102382,691.18,Revenue,Allpay Net Ltd,17242
Chorley Borough Council,http://statistics.data.gov.uk/id/local-authority/30UE,Unapportionable Central OHeads,1009,"Customer, ICT & Transactional",Bank Charges,40151,Miscellaneous Expenses,5034,PayPoint Transactions,22/04/2015,102382,482.46,Revenue,Allpay Net Ltd,17242
Chorley Borough Council,http://statistics.data.gov.uk/id/local-authority/30UE,Unapportionable Central OHeads,1009,"Customer, ICT & Transactional",Bank Charges,40151,Miscellaneous Expenses,5034,Webconnect Monthly Charges,22/04/2015,102382,33.97,Revenue,Allpay Net Ltd,17242
Chorley Borough Council,http://statistics.data.gov.uk/id/local-authority/30UE,Unapportionable Central OHeads,1009,Shared Service Arrangement,Car Leasing Payment,14100,Direct Employee Expenses,5001,Car Lease,10/04/2015,102412,252.96,Revenue,Alphabet (Uk) Fleet Management Ltd,16651
Chorley Borough Council,http://statistics.data.gov.uk/id/local-authority/30UE,Unapportionable Central OHeads,1009,Shared Service Arrangement,Car Leasing Payment,14100,Direct Employee Expenses,5001,Car Lease,10/04/2015,102412,23.28,Revenue,Alphabet (Uk) Fleet Management Ltd,16651
Chorley Borough Council,http://statistics.data.gov.uk/id/local-authority/30UE,Control Accounts,Control,Shared Service Arrangement,Manual Control Account,1,Balance Sheet,Balance,Car Lease,10/04/2015,102412,-23.28,Revenue,Alphabet (Uk) Fleet Management Ltd,16651
Chorley Borough Council,http://statistics.data.gov.uk/id/local-authority/30UE,Democratic Represent and  Mgnt,1007,Shared Service Arrangement,Transport Operating Leases,30029,Contrct Hire & Operating Lease,5018,Mayoral Car Lease,10/04/2015,102412,340.07,Revenue,Alphabet (Uk) Fleet Management Ltd,16651
Chorley Borough Council,http://statistics.data.gov.uk/id/local-authority/30UE,Democratic Represent and  Mgnt,1007,Shared Service Arrangement,Transport Operating Leases,30029,Contrct Hire & Operating Lease,5018,Mayoral Car Lease,10/04/2015,102412,31.59,Revenue,Alphabet (Uk) Fleet Management Ltd,16651
Chorley Borough Council,http://statistics.data.gov.uk/id/local-authority/30UE,Control Accounts,Control,Shared Service Arrangement,Manual Control Account,1,Balance Sheet,Balance,Mayoral Car Lease,10/04/2015,102412,-31.59,Revenue,Alphabet (Uk) Fleet Management Ltd,16651
Chorley Borough Council,http://statistics.data.gov.uk/id/local-authority/30UE,Unapportionable Central OHeads,1009,Shared Service Arrangement,Car Leasing Payment,14100,Direct Employee Expenses,5001,Car Lease,10/04/2015,102412,197.16,Revenue,Alphabet (Uk) Fleet Management Ltd,16651
Chorley Borough Council,http://statistics.data.gov.uk/id/local-authority/30UE,Unapportionable Central OHeads,1009,Shared Service Arrangement,Car Leasing Payment,14100,Direct Employee Expenses,5001,Car Lease,10/04/2015,102412,16.71,Revenue,Alphabet (Uk) Fleet Management Ltd,16651
Chorley Borough Council,http://statistics.data.gov.uk/id/local-authority/30UE,Control Accounts,Control,Shared Service Arrangement,Manual Control Account,1,Balance Sheet,Balance,Car Lease,10/04/2015,102412,-16.71,Revenue,Alphabet (Uk) Fleet Management Ltd,16651
Chorley Borough Council,http://statistics.data.gov.uk/id/local-authority/30UE,Planning Policy,1092,Shared Service Arrangement,Car Leasing Payment,14100,Direct Employee Expenses,5001,Car Lease,10/04/2015,102412,237.46,Revenue,Alphabet (Uk) Fleet Management Ltd,16651
Chorley Borough Council,http://statistics.data.gov.uk/id/local-authority/30UE,Planning Policy,1092,Shared Service Arrangement,Car Leasing Payment,14100,Direct Employee Expenses,5001,Car Lease,10/04/2015,102412,21.24,Revenue,Alphabet (Uk) Fleet Management Ltd,16651
Chorley Borough Council,http://statistics.data.gov.uk/id/local-authority/30UE,Control Accounts,Control,Shared Service Arrangement,Manual Control Account,1,Balance Sheet,Balance,Car Lease,10/04/2015,102412,-21.24,Revenue,Alphabet (Uk) Fleet Management Ltd,16651
Chorley Borough Council,http://statistics.data.gov.uk/id/local-authority/30UE,Corporate Management,1008,Shared Service Arrangement,Car Leasing Payment,14100,Direct Employee Expenses,5001,Car Lease,10/04/2015,102413,"4,149.46",Revenue,Alphabet (Uk) Fleet Management Ltd,16651
Chorley Borough Council,http://statistics.data.gov.uk/id/local-authority/30UE,Corporate Management,1008,Shared Service Arrangement,Car Leasing Payment,14100,Direct Employee Expenses,5001,Car Lease,10/04/2015,102413,346.09,Revenue,Alphabet (Uk) Fleet Management Ltd,16651
Chorley Borough Council,http://statistics.data.gov.uk/id/local-authority/30UE,Control Accounts,Control,Shared Service Arrangement,Manual Control Account,1,Balance Sheet,Balance,Car Lease,10/04/2015,102413,-346.09,Revenue,Alphabet (Uk) Fleet Management Ltd,16651
Chorley Borough Council,http://statistics.data.gov.uk/id/local-authority/30UE,Economic Development,1096,Economic Development,Cleaning Materials,40019,"Equipment, Furniture & Materia",5023,Please supply items as per items on spread sheet emailed,08/04/2015,102163,394.98,Revenue,Amtoll Ltd,21738
Chorley Borough Council,http://statistics.data.gov.uk/id/local-authority/30UE,Payments of Precepts to Parish,1018,"Customer, ICT & Transactional",Parish Council Tax,4500,Revenue Account Transfers,Balance,Precepts,17/04/2015,102574,"4,506.00",Revenue,Anderton Parish Council,18125
Chorley Borough Council,http://statistics.data.gov.uk/id/local-authority/30UE,Corporate Management,1008,"Customer, ICT & Transactional",Contributions Parish Councils,40144,Grants and Subscriptions,5031,Precepts,17/04/2015,102574,294.00,Revenue,Anderton Parish Council,18125
Chorley Borough Council,http://statistics.data.gov.uk/id/local-authority/30UE,Central Support Services,1009,"Customer, ICT & Transactional",Computer Equipment-Purchase,40098,Communication and Computing,5028,1000BASE-T SFP,08/04/2015,102183,577.16,Revenue,ANS Group,22502
Chorley Borough Council,http://statistics.data.gov.uk/id/local-authority/30UE,Central Support Services,1009,"Customer, ICT & Transactional",IT Software - Annual Licences,40101,Communication and Computing,5028,"Subscription Advantage Citrix XenDesktop Platinum Edition Per User 400 users SN: LA000107150408272 ",29/04/2015,102542,"10,069.44",Revenue,ANS Group,22502
Chorley Borough Council,http://statistics.data.gov.uk/id/local-authority/30UE,Central Support Services,1009,"Customer, ICT & Transactional",IT Software - Annual Licences,40101,Communication and Computing,5028,"Software Maintenance Citrix XenMobile MDM Edition 50 users Apr 22, 2015 to Mar 31,2016 SN: LA000175820390061",29/04/2015,102542,435.15,Revenue,ANS Group,22502
Chorley Borough Council,http://statistics.data.gov.uk/id/local-authority/30UE,Service Management & Support,1009,Streetscene & Leisure Contracts,External Contractor,40198,Miscellaneous Expenses,5034,Creation of 70m gritstone path opposite The Pines to exising desire line and link to heritage garden as per quotation.,24/04/2015,102671,"1,715.00",Revenue,AP Broom Landscapes,67257
Chorley Borough Council,http://statistics.data.gov.uk/id/local-authority/30UE,Central Support Services,1009,Health Environment & Neighbourhoods,Tools & Equipment - Purchase,40003,"Equipment, Furniture & Materia",5023,Hotpoint washer drier WDL520 in white free delivery,17/04/2015,102440,274.99,Revenue,Argos Business Solutions,16213
Chorley Borough Council,http://statistics.data.gov.uk/id/local-authority/30UE,Central Support Services,1009,Shared Service Arrangement,Car Leasing Payment,14100,Direct Employee Expenses,5001,Car Lease,10/04/2015,102304,"3,360.00",Revenue,Arnold Clark Finance Ltd,20685
Chorley Borough Council,http://statistics.data.gov.uk/id/local-authority/30UE,Central Support Services,1009,Shared Service Arrangement,Car Leasing Payment,14100,Direct Employee Expenses,5001,Car Lease,10/04/2015,102304,299.05,Revenue,Arnold Clark Finance Ltd,20685
Chorley Borough Council,http://statistics.data.gov.uk/id/local-authority/30UE,Control Accounts,Control,Shared Service Arrangement,Manual Control Account,1,Balance Sheet,Balance,Car Lease,10/04/2015,102304,-299.05,Revenue,Arnold Clark Finance Ltd,20685
Chorley Borough Council,http://statistics.data.gov.uk/id/local-authority/30UE,Central Support Services,1009,Shared Service Arrangement,Car Leasing Payment,14100,Direct Employee Expenses,5001,Car Lease,10/04/2015,102388,247.00,Revenue,Arnold Clark Finance Ltd,20685
Chorley Borough Council,http://statistics.data.gov.uk/id/local-authority/30UE,Central Support Services,1009,Shared Service Arrangement,Car Leasing Payment,14100,Direct Employee Expenses,5001,Car Lease,10/04/2015,102388,20.60,Revenue,Arnold Clark Finance Ltd,20685
Chorley Borough Council,http://statistics.data.gov.uk/id/local-authority/30UE,Control Accounts,Control,Shared Service Arrangement,Manual Control Account,1,Balance Sheet,Balance,Car Lease,10/04/2015,102388,-20.60,Revenue,Arnold Clark Finance Ltd,20685
Chorley Borough Council,http://statistics.data.gov.uk/id/local-authority/30UE,Development Control,1091,Shared Service Arrangement,Car Leasing Payment,14100,Direct Employee Expenses,5001,Car Lease,10/04/2015,102388,205.00,Revenue,Arnold Clark Finance Ltd,20685
Chorley Borough Council,http://statistics.data.gov.uk/id/local-authority/30UE,Development Control,1091,Shared Service Arrangement,Car Leasing Payment,14100,Direct Employee Expenses,5001,Car Lease,10/04/2015,102388,89.56,Revenue,Arnold Clark Finance Ltd,20685
Chorley Borough Council,http://statistics.data.gov.uk/id/local-authority/30UE,Control Accounts,Control,Shared Service Arrangement,Manual Control Account,1,Balance Sheet,Balance,Car Lease,10/04/2015,102388,-89.56,Revenue,Arnold Clark Finance Ltd,20685
Chorley Borough Council,http://statistics.data.gov.uk/id/local-authority/30UE,Unapportionable Central OHeads,1009,Shared Service Arrangement,Car Leasing Payment,14100,Direct Employee Expenses,5001,"Ford Fiesta Titanium X Colour - Race RedMileage - 14000 per annum Lease period - 3 years Fuel - DieselDriver - ",10/04/2015,102390,"2,142.12",Revenue,Arnold Clark Finance Ltd,20685
Chorley Borough Council,http://statistics.data.gov.uk/id/local-authority/30UE,Unapportionable Central OHeads,1009,Shared Service Arrangement,Car Leasing Payment,14100,Direct Employee Expenses,5001,Car Lease,10/04/2015,102390,167.50,Revenue,Arnold Clark Finance Ltd,20685
Chorley Borough Council,http://statistics.data.gov.uk/id/local-authority/30UE,Control Accounts,Control,Shared Service Arrangement,Manual Control Account,1,Balance Sheet,Balance,Car Lease,10/04/2015,102390,-167.50,Revenue,Arnold Clark Finance Ltd,20685
Chorley Borough Council,http://statistics.data.gov.uk/id/local-authority/30UE,Democratic Represent and  Mgnt,1007,Shared Service Arrangement,Car Leasing Payment,14100,Direct Employee Expenses,5001,Car Lease,17/04/2015,102548,"2,940.00",Revenue,Arnold Clark Finance Ltd,20685
Chorley Borough Council,http://statistics.data.gov.uk/id/local-authority/30UE,Democratic Represent and  Mgnt,1007,Shared Service Arrangement,Car Leasing Payment,14100,Direct Employee Expenses,5001,Car Lease,17/04/2015,102548,253.57,Revenue,Arnold Clark Finance Ltd,20685
Chorley Borough Council,http://statistics.data.gov.uk/id/local-authority/30UE,Control Accounts,Control,Shared Service Arrangement,Manual Control Account,1,Balance Sheet,Balance,Car Lease,17/04/2015,102548,-253.57,Revenue,Arnold Clark Finance Ltd,20685
Chorley Borough Council,http://statistics.data.gov.uk/id/local-authority/30UE,Building Control,1090,Shared Service Arrangement,Car Leasing Payment,14100,Direct Employee Expenses,5001,Car Lease,17/04/2015,102549,"3,492.00",Revenue,Arnold Clark Finance Ltd,20685
Chorley Borough Council,http://statistics.data.gov.uk/id/local-authority/30UE,Building Control,1090,Shared Service Arrangement,Car Leasing Payment,14100,Direct Employee Expenses,5001,Car Lease,17/04/2015,102549,293.13,Revenue,Arnold Clark Finance Ltd,20685
Chorley Borough Council,http://statistics.data.gov.uk/id/local-authority/30UE,Control Accounts,Control,Shared Service Arrangement,Manual Control Account,1,Balance Sheet,Balance,Car Lease,17/04/2015,102549,-293.13,Revenue,Arnold Clark Finance Ltd,20685
Chorley Borough Council,http://statistics.data.gov.uk/id/local-authority/30UE,Corporate Management,1008,Shared Service Arrangement,Car Leasing Payment,14100,Direct Employee Expenses,5001,Car Lease,17/04/2015,102550,"2,772.00",Revenue,Arnold Clark Finance Ltd,20685
Chorley Borough Council,http://statistics.data.gov.uk/id/local-authority/30UE,Corporate Management,1008,Shared Service Arrangement,Car Leasing Payment,14100,Direct Employee Expenses,5001,Car Lease,17/04/2015,102550,239.40,Revenue,Arnold Clark Finance Ltd,20685
Chorley Borough Council,http://statistics.data.gov.uk/id/local-authority/30UE,Control Accounts,Control,Shared Service Arrangement,Manual Control Account,1,Balance Sheet,Balance,Car Lease,17/04/2015,102550,-239.40,Revenue,Arnold Clark Finance Ltd,20685
Chorley Borough Council,http://statistics.data.gov.uk/id/local-authority/30UE,Unapportionable Central OHeads,1009,Shared Service Arrangement,Car Leasing Payment,14100,Direct Employee Expenses,5001,Car Lease,17/04/2015,102551,"1,806.00",Revenue,Arnold Clark Finance Ltd,20685
Chorley Borough Council,http://statistics.data.gov.uk/id/local-authority/30UE,Unapportionable Central OHeads,1009,Shared Service Arrangement,Car Leasing Payment,14100,Direct Employee Expenses,5001,Car Lease,17/04/2015,102551,156.91,Revenue,Arnold Clark Finance Ltd,20685
Chorley Borough Council,http://statistics.data.gov.uk/id/local-authority/30UE,Control Accounts,Control,Shared Service Arrangement,Manual Control Account,1,Balance Sheet,Balance,Car Lease,17/04/2015,102551,-156.91,Revenue,Arnold Clark Finance Ltd,20685
Chorley Borough Council,http://statistics.data.gov.uk/id/local-authority/30UE,Unapportionable Central OHeads,1009,Shared Service Arrangement,Car Leasing Payment,14100,Direct Employee Expenses,5001,Car Lease,17/04/2015,102552,"3,504.00",Revenue,Arnold Clark Finance Ltd,20685
Chorley Borough Council,http://statistics.data.gov.uk/id/local-authority/30UE,Unapportionable Central OHeads,1009,Shared Service Arrangement,Car Leasing Payment,14100,Direct Employee Expenses,5001,Car Lease,17/04/2015,102552,294.34,Revenue,Arnold Clark Finance Ltd,20685
Chorley Borough Council,http://statistics.data.gov.uk/id/local-authority/30UE,Control Accounts,Control,Shared Service Arrangement,Manual Control Account,1,Balance Sheet,Balance,Car Lease,17/04/2015,102552,-294.34,Revenue,Arnold Clark Finance Ltd,20685
Chorley Borough Council,http://statistics.data.gov.uk/id/local-authority/30UE,Development Control,1091,Shared Service Arrangement,Car Leasing Payment,14100,Direct Employee Expenses,5001,Car Lease,22/04/2015,102697,683.92,Revenue,Arnold Clark Finance Ltd,20685
Chorley Borough Council,http://statistics.data.gov.uk/id/local-authority/30UE,Development Control,1091,Shared Service Arrangement,Car Leasing Payment,14100,Direct Employee Expenses,5001,Car Lease,22/04/2015,102697,61.69,Revenue,Arnold Clark Finance Ltd,20685
Chorley Borough Council,http://statistics.data.gov.uk/id/local-authority/30UE,Control Accounts,Control,Shared Service Arrangement,Manual Control Account,1,Balance Sheet,Balance,Car Lease,22/04/2015,102697,-61.69,Revenue,Arnold Clark Finance Ltd,20685
Chorley Borough Council,http://statistics.data.gov.uk/id/local-authority/30UE,Payments of Precepts to Parish,1018,"Customer, ICT & Transactional",Parish Council Tax,4500,Revenue Account Transfers,Balance,Precepts,17/04/2015,102573,"19,663.00",Revenue,Astley Village Parish Council,17642
Chorley Borough Council,http://statistics.data.gov.uk/id/local-authority/30UE,Corporate Management,1008,"Customer, ICT & Transactional",Contributions Parish Councils,40144,Grants and Subscriptions,5031,Precepts,17/04/2015,102573,"3,877.00",Revenue,Astley Village Parish Council,17642
Chorley Borough Council,http://statistics.data.gov.uk/id/local-authority/30UE,Economic Development,1096,Economic Development,Grants To Other Organisations,40127,Grants and Subscriptions,5031,Shop front 3rd and final tranche,10/04/2015,102370,717.00,Revenue,B & M Holdings,66209
Chorley Borough Council,http://statistics.data.gov.uk/id/local-authority/30UE,Service Management & Support,1009,Streetscene & Leisure Contracts,Registered Plant - Maintenance,40247,"Equipment, Furniture & Materia",5023,Supply control box for Timberwolf chipper as on advise note 173264/3,29/04/2015,102819,372.86,Revenue,Balmers Garden Machinery,17075
Chorley Borough Council,http://statistics.data.gov.uk/id/local-authority/30UE,Service Management & Support,1009,Streetscene & Leisure Contracts,Registered Plant - Maintenance,40247,"Equipment, Furniture & Materia",5023,Supply items as on invoice number 173264/2 already supplied,29/04/2015,102821,312.00,Revenue,Balmers Garden Machinery,17075
Chorley Borough Council,http://statistics.data.gov.uk/id/local-authority/30UE,Unapportionable Central OHeads,1009,Shared Service Arrangement,Legal Fees,40171,Miscellaneous Expenses,5034,13/03/15 - HM Courts,29/04/2015,102424,123.00,Revenue,Barclaycard Commercial,59848
Chorley Borough Council,http://statistics.data.gov.uk/id/local-authority/30UE,Business Support,1095,Shared Service Arrangement,Promotional Expenses,40159,Miscellaneous Expenses,5034,09/03/2015 - Mailchimp March Fees,29/04/2015,102424,16.80,Revenue,Barclaycard Commercial,59848
Chorley Borough Council,http://statistics.data.gov.uk/id/local-authority/30UE,Homelessness,1075,Shared Service Arrangement,Prevention Fund,40242,Miscellaneous Expenses,5034,11/03/2015 - Northern Rail Ltd train fare,29/04/2015,102424,5.50,Revenue,Barclaycard Commercial,59848
Chorley Borough Council,http://statistics.data.gov.uk/id/local-authority/30UE,Homelessness,1075,Shared Service Arrangement,Prevention Fund,40242,Miscellaneous Expenses,5034,11/03/2015 - Preston County Courts,29/04/2015,102424,50.00,Revenue,Barclaycard Commercial,59848
Chorley Borough Council,http://statistics.data.gov.uk/id/local-authority/30UE,Central Support Services,1009,Shared Service Arrangement,Computer Equipment-Purchase,40098,Communication and Computing,5028,17/03/2015 - Paypal Telecomrecy Doro Analogue Telephone,29/04/2015,102424,60.00,Revenue,Barclaycard Commercial,59848
Chorley Borough Council,http://statistics.data.gov.uk/id/local-authority/30UE,Unapportionable Central OHeads,1009,Shared Service Arrangement,Legal Fees,40171,Miscellaneous Expenses,5034,16/03/15 - Court Fees,29/04/2015,102424,792.00,Revenue,Barclaycard Commercial,59848
Chorley Borough Council,http://statistics.data.gov.uk/id/local-authority/30UE,Public Transport,1067,Shared Service Arrangement,Other Fees,40212,Miscellaneous Expenses,5034,02/03/15 - Companies House Annual return Chorley Interchange,29/04/2015,102424,13.00,Revenue,Barclaycard Commercial,59848
Chorley Borough Council,http://statistics.data.gov.uk/id/local-authority/30UE,Unapportionable Central OHeads,1009,Shared Service Arrangement,Publications,40054,"Printing, Stationery & General",5026,04/03/15 - Amazon UK Retail - Legal Publication,29/04/2015,102424,50.71,Revenue,Barclaycard Commercial,59848
Chorley Borough Council,http://statistics.data.gov.uk/id/local-authority/30UE,Corporate Management,1008,Shared Service Arrangement,Miscellaneous Expenses,40200,Miscellaneous Expenses,5034,04/03/15 - Cosmopolitan Wine - Chorley Commissioning Event Meal,29/04/2015,102424,217.20,Revenue,Barclaycard Commercial,59848
Chorley Borough Council,http://statistics.data.gov.uk/id/local-authority/30UE,Unapportionable Central OHeads,1009,Shared Service Arrangement,Exhibitions & Special Events,40158,Miscellaneous Expenses,5034,09/03/15 - Google ADWS - Advertising,29/04/2015,102424,94.80,Revenue,Barclaycard Commercial,59848
Chorley Borough Council,http://statistics.data.gov.uk/id/local-authority/30UE,Unapportionable Central OHeads,1009,Shared Service Arrangement,Training Course Fees,17010,Indirect Employee Expenses,5002,13/03/15 - Paypal Pootlepress - training materials for Comms,29/04/2015,102424,114.00,Revenue,Barclaycard Commercial,59848
Chorley Borough Council,http://statistics.data.gov.uk/id/local-authority/30UE,Unapportionable Central OHeads,1009,Shared Service Arrangement,Publicity - Advertising,40157,Miscellaneous Expenses,5034,14/03/15 - Facebook advertisements,29/04/2015,102424,20.70,Revenue,Barclaycard Commercial,59848
Chorley Borough Council,http://statistics.data.gov.uk/id/local-authority/30UE,Unapportionable Central OHeads,1009,Shared Service Arrangement,Publicity - Advertising,40157,Miscellaneous Expenses,5034,16/03/15 - Facebook advertisements,29/04/2015,102424,20.12,Revenue,Barclaycard Commercial,59848
Chorley Borough Council,http://statistics.data.gov.uk/id/local-authority/30UE,Unapportionable Central OHeads,1009,Shared Service Arrangement,Publicity - Advertising,40157,Miscellaneous Expenses,5034,23/03/15 - Facebook advertisements,29/04/2015,102424,0.72,Revenue,Barclaycard Commercial,59848
Chorley Borough Council,http://statistics.data.gov.uk/id/local-authority/30UE,Service Management & Support,1009,Shared Service Arrangement,Vehicle Excise Duty,30012,Direct Transport Costs,5016,10/03/15 - DVLA - Road Tax Compact Sweepers,29/04/2015,102424,335.00,Revenue,Barclaycard Commercial,59848
Chorley Borough Council,http://statistics.data.gov.uk/id/local-authority/30UE,Corporate Management,1008,Shared Service Arrangement,Bank Charges,40151,Miscellaneous Expenses,5034,March Charges,29/04/2015,102378,368.29,Revenue,Barclaycard Merchant Services,61601
Chorley Borough Council,http://statistics.data.gov.uk/id/local-authority/30UE,Corporate Management,1008,Shared Service Arrangement,Bank Charges,40151,Miscellaneous Expenses,5034,March Charges,29/04/2015,102479,314.20,Revenue,Barclaycard Merchant Services,61601
Chorley Borough Council,http://statistics.data.gov.uk/id/local-authority/30UE,Corporate Management,1008,Shared Service Arrangement,Bank Charges,40151,Miscellaneous Expenses,5034,March Charges,29/04/2015,102480,466.14,Revenue,Barclaycard Merchant Services,61601
Chorley Borough Council,http://statistics.data.gov.uk/id/local-authority/30UE,Democratic Represent and  Mgnt,1007,Streetscene & Leisure Contracts,Other Fees,40212,Miscellaneous Expenses,5034,"Stansted Road Play Area, scrape, prime and paint the railings in either a dark green or black.  ",15/04/2015,102468,400.00,Revenue,Barrie Thompson,19585
Chorley Borough Council,http://statistics.data.gov.uk/id/local-authority/30UE,Central Support Services,1009,Health Environment & Neighbourhoods,Tools & Equipment - Maintenance,40005,"Equipment, Furniture & Materia",5023,Maintenance of CCTV,17/04/2015,102502,377.92,Revenue,Baydale Control Systems,21154
Chorley Borough Council,http://statistics.data.gov.uk/id/local-authority/30UE,Unapportionable Central OHeads,1009,"Customer, ICT & Transactional",Consultants` Fees,40077,Services,5027,"Support as agreed with Customer, Transactional and ICT services 3 days a week.",10/04/2015,102349,"1,950.00",Revenue,REDACTED PERSONAL DATA,22238
Chorley Borough Council,http://statistics.data.gov.uk/id/local-authority/30UE,Corporate Management,1008,Policy & Performance,Consultants` Fees,40077,Services,5027,Policy Support/Consultancy - 20 days between January and March,10/04/2015,102351,750.00,Revenue,REDACTED PERSONAL DATA,22238
Chorley Borough Council,http://statistics.data.gov.uk/id/local-authority/30UE,Homelessness,1075,Housing,Laundry,40042,"Clothing, Uniforms and Laundry",5025,"Linen Service at Cotswold Supported Housing, Cotswold Road, Chorley, Lancashire, PR7 3HW. period of April",08/04/2015,102235,295.25,Revenue,Berendsen UK Ltd,20799
Chorley Borough Council,http://statistics.data.gov.uk/id/local-authority/30UE,Central Support Services,1009,Shared Service Arrangement,External Contractor,40198,Miscellaneous Expenses,5034,Ad Hoc Charges - Payslips,10/04/2015,102305,"2,133.32",Revenue,Blackpool Borough Council,16518
Chorley Borough Council,http://statistics.data.gov.uk/id/local-authority/30UE,Central Support Services,1009,Shared Service Arrangement,External Contractor,40198,Miscellaneous Expenses,5034,Ad Hoc Charges - Payroll Postage,10/04/2015,102305,145.00,Revenue,Blackpool Borough Council,16518
Chorley Borough Council,http://statistics.data.gov.uk/id/local-authority/30UE,Democratic Represent and  Mgnt,1007,Streetscene & Leisure Contracts,Exhibitions & Special Events,40158,Miscellaneous Expenses,5034,ad hoc charges,24/04/2015,102674,566.00,Revenue,Blackpool Borough Council,16518
Chorley Borough Council,http://statistics.data.gov.uk/id/local-authority/30UE,Economic Development,1096,Streetscene & Leisure Contracts,Christmas Lights,40179,Miscellaneous Expenses,5034,xmas lghts,23/04/2015,102703,"56,683.00",Revenue,Blackpool Borough Council,16518
Chorley Borough Council,http://statistics.data.gov.uk/id/local-authority/30UE,Economic Development,1096,Economic Development,Christmas Lights,40179,Miscellaneous Expenses,5034,"Supply, installation, removal, maintenance & storage of Chorley Christmas lights",29/04/2015,102817,"4,468.00",Revenue,Blackpool Borough Council,16518
Chorley Borough Council,http://statistics.data.gov.uk/id/local-authority/30UE,Economic Development,1096,Economic Development,Christmas Lights,40179,Miscellaneous Expenses,5034,"Supply, installation, removal, maintenance & storage of Chorley Christmas lights",29/04/2015,102818,"40,042.00",Revenue,Blackpool Borough Council,16518
Chorley Borough Council,http://statistics.data.gov.uk/id/local-authority/30UE,Payments of Precepts to Parish,1018,"Customer, ICT & Transactional",Parish Council Tax,4500,Revenue Account Transfers,Balance,Precepts,17/04/2015,102572,"9,306.00",Revenue,Bretherton Parish Council,17108
Chorley Borough Council,http://statistics.data.gov.uk/id/local-authority/30UE,Corporate Management,1008,"Customer, ICT & Transactional",Contributions Parish Councils,40144,Grants and Subscriptions,5031,Precepts,17/04/2015,102572,414.00,Revenue,Bretherton Parish Council,17108
Chorley Borough Council,http://statistics.data.gov.uk/id/local-authority/30UE,Payments of Precepts to Parish,1018,"Customer, ICT & Transactional",Parish Council Tax,4500,Revenue Account Transfers,Balance,Precepts,17/04/2015,102571,"6,527.00",Revenue,Brindle Parish Council,17023
Chorley Borough Council,http://statistics.data.gov.uk/id/local-authority/30UE,Corporate Management,1008,"Customer, ICT & Transactional",Contributions Parish Councils,40144,Grants and Subscriptions,5031,Precepts,17/04/2015,102571,273.00,Revenue,Brindle Parish Council,17023
Chorley Borough Council,http://statistics.data.gov.uk/id/local-authority/30UE,Democratic Represent and  Mgnt,1007,Transformation Management,Gas,20014,Energy Costs,5006,Astley Park Coach House,24/04/2015,102547,597.34,Revenue,British Gas Business,22242
Chorley Borough Council,http://statistics.data.gov.uk/id/local-authority/30UE,Community Development,1097,Transformation Management,Gas,20014,Energy Costs,5006,35-39 Market Street,24/04/2015,102547,75.51,Revenue,British Gas Business,22242
Chorley Borough Council,http://statistics.data.gov.uk/id/local-authority/30UE,Unapportionable Central OHeads,1009,Transformation Management,Gas,20014,Energy Costs,5006,Bengal Street,24/04/2015,102547,280.80,Revenue,British Gas Business,22242
Chorley Borough Council,http://statistics.data.gov.uk/id/local-authority/30UE,Democratic Represent and  Mgnt,1007,Transformation Management,Gas,20014,Energy Costs,5006,Astley Hall,24/04/2015,102547,156.13,Revenue,British Gas Business,22242
Chorley Borough Council,http://statistics.data.gov.uk/id/local-authority/30UE,Democratic Represent and  Mgnt,1007,Transformation Management,Gas,20014,Energy Costs,5006,Clayton Brook Village Hall,24/04/2015,102547,174.72,Revenue,British Gas Business,22242
Chorley Borough Council,http://statistics.data.gov.uk/id/local-authority/30UE,Democratic Represent and  Mgnt,1007,Transformation Management,Gas,20014,Energy Costs,5006,Astley Village Community Centre,24/04/2015,102547,287.01,Revenue,British Gas Business,22242
Chorley Borough Council,http://statistics.data.gov.uk/id/local-authority/30UE,Democratic Represent and  Mgnt,1007,Transformation Management,Gas,20014,Energy Costs,5006,Astley Hall Farm House,24/04/2015,102547,13.34,Revenue,British Gas Business,22242
Chorley Borough Council,http://statistics.data.gov.uk/id/local-authority/30UE,Democratic Represent and  Mgnt,1007,Transformation Management,Gas,20014,Energy Costs,5006,Eaves Graan CC,24/04/2015,102547,362.41,Revenue,British Gas Business,22242
Chorley Borough Council,http://statistics.data.gov.uk/id/local-authority/30UE,Unapportionable Central OHeads,1009,Transformation Management,Gas,20014,Energy Costs,5006,Civic Offices,24/04/2015,102547,"1,469.33",Revenue,British Gas Business,22242
Chorley Borough Council,http://statistics.data.gov.uk/id/local-authority/30UE,Democratic Represent and  Mgnt,1007,Transformation Management,Gas,20014,Energy Costs,5006,Astley Hall,24/04/2015,102547,"2,035.56",Revenue,British Gas Business,22242
Chorley Borough Council,http://statistics.data.gov.uk/id/local-authority/30UE,Unapportionable Central OHeads,1009,Transformation Management,Gas,20014,Energy Costs,5006,Town Hall,24/04/2015,102547,"1,538.88",Revenue,British Gas Business,22242
Chorley Borough Council,http://statistics.data.gov.uk/id/local-authority/30UE,Service Management & Support,1009,Streetscene & Leisure Contracts,Supplies-Grounds Maintenance,40025,"Equipment, Furniture & Materia",5023,Highway C2 fast setting mortar delivered,10/04/2015,102347,412.00,Revenue,C & W BERRY LIMITED,18180
Chorley Borough Council,http://statistics.data.gov.uk/id/local-authority/30UE,Service Management & Support,1009,Streetscene & Leisure Contracts,Supplies-Grounds Maintenance,40025,"Equipment, Furniture & Materia",5023,Highway C2 fast setting mortar delivered,22/04/2015,102696,824.00,Revenue,C & W BERRY LIMITED,18180
Chorley Borough Council,http://statistics.data.gov.uk/id/local-authority/30UE,Service Management & Support,1009,Streetscene & Leisure Contracts,External Contractor,40198,Miscellaneous Expenses,5034,Carryout jetting and investigation works at Gillibrands and Astley Parkas requested.,17/04/2015,102435,620.00,Revenue,C J Lyon,16579
Chorley Borough Council,http://statistics.data.gov.uk/id/local-authority/30UE,Service Management & Support,1009,Streetscene & Leisure Contracts,External Contractor,40198,Miscellaneous Expenses,5034,Carryout monthly emptying of interceptor tank and gullies at Bengal St depot at price agreed,29/04/2015,102741,300.00,Revenue,C J Lyon,16579
Chorley Borough Council,http://statistics.data.gov.uk/id/local-authority/30UE,Service Management & Support,1009,Streetscene & Leisure Contracts,Vehicle Maintenance,30045,Direct Transport Costs,5016,Carryout F T A repairs as per inspection sheet on DK07LDE,10/04/2015,102160,"1,038.84",Revenue,C P Davidson & Sons Ltd,21093
Chorley Borough Council,http://statistics.data.gov.uk/id/local-authority/30UE,Service Management & Support,1009,Streetscene & Leisure Contracts,Vehicle Maintenance,30045,Direct Transport Costs,5016,Supply and fit new board and install strenghtening bars across chasis frame on DK56 JWO ,08/04/2015,102209,357.25,Revenue,C P Davidson & Sons Ltd,21093
Chorley Borough Council,http://statistics.data.gov.uk/id/local-authority/30UE,Economic Development,1096,Economic Development,Grants To Other Organisations,40127,Grants and Subscriptions,5031,Shop front improvement grant,22/04/2015,102602,"2,476.87",Revenue,Cakes by Ruth,57311
Chorley Borough Council,http://statistics.data.gov.uk/id/local-authority/30UE,Economic Development,1096,Economic Development,Grants To Other Organisations,40127,Grants and Subscriptions,5031,Shop front improvement grant,22/04/2015,102602,"5,000.00",Revenue,Cakes by Ruth,57311
Chorley Borough Council,http://statistics.data.gov.uk/id/local-authority/30UE,Capital,Capital,Economic Development,Other Capital Grants/Loans,3000,Capital Expenditure,Capital,Climate Chnage grant payment - heating,22/04/2015,102602,"3,000.00",Capital,Cakes by Ruth,57311
Chorley Borough Council,http://statistics.data.gov.uk/id/local-authority/30UE,Unapportionable Central OHeads,1009,"Customer, ICT & Transactional",Emergency Call Out System,40096,Communication and Computing,5028,Out of hours call charges March 2015,17/04/2015,102419,539.24,Revenue,CallCare Ltd,20257
Chorley Borough Council,http://statistics.data.gov.uk/id/local-authority/30UE,Unapportionable Central OHeads,1009,"Customer, ICT & Transactional",Emergency Call Out System,40096,Communication and Computing,5028,Out of hours standing charge May 2015 (Including  Bank Holidays),17/04/2015,102419,220.00,Revenue,CallCare Ltd,20257
Chorley Borough Council,http://statistics.data.gov.uk/id/local-authority/30UE,Central Support Services,1009,Governance,Miscellaneous Expenses,40200,Miscellaneous Expenses,5034,"Event expenses for the Chorley Grand Prix:Meals for event personnel/judges 381.07 Stationary/misc items 21.38",24/04/2015,102752,711.15,Revenue,Carole Leigh,69859
Chorley Borough Council,http://statistics.data.gov.uk/id/local-authority/30UE,Capital,Capital,Streetscene & Leisure Contracts,Main Contractor,3007,Capital Expenditure,Capital,Asbestos removal in Townley Parker Room March 2015. 4840 plus VAT,24/04/2015,102763,"4,840.00",Capital,Castle mount Contracts Ltd,66621
Chorley Borough Council,http://statistics.data.gov.uk/id/local-authority/30UE,Corporate Management,1008,Chief Executives Office,Consultants` Fees,40077,Services,5027,Consultancy Services provided for Commission,10/04/2015,102399,"2,500.00",Revenue,Centre for Local Economic Strategies,69642
Chorley Borough Council,http://statistics.data.gov.uk/id/local-authority/30UE,Central Support Services,1009,Streetscene & Leisure Contracts,Miscellaneous Expenses,40200,Miscellaneous Expenses,5034,"Footpath improvement works to land off South Ave, Chorley as detailed in quotation of 23 Jan 2015. Work to be completed",29/04/2015,102785,"10,500.00",Revenue,CH Civils Ltd,22541
Chorley Borough Council,http://statistics.data.gov.uk/id/local-authority/30UE,Payments of Precepts to Parish,1018,"Customer, ICT & Transactional",Parish Council Tax,4500,Revenue Account Transfers,Balance,Precepts,17/04/2015,102570,"26,655.00",Revenue,Charnock Richard Parish Cncl,16206
Chorley Borough Council,http://statistics.data.gov.uk/id/local-authority/30UE,Corporate Management,1008,"Customer, ICT & Transactional",Contributions Parish Councils,40144,Grants and Subscriptions,5031,Precepts,17/04/2015,102570,345.00,Revenue,Charnock Richard Parish Cncl,16206
Chorley Borough Council,http://statistics.data.gov.uk/id/local-authority/30UE,Parking Services,1066,Streetscene & Leisure Contracts,Tools & Equipment - Maintenance,40005,"Equipment, Furniture & Materia",5023,Repayment for Repair works. PSION- Service RMA repair to WAP 13691 & 13690,15/04/2015,99772,299.47,Revenue,Chipside Ltd,22063
Chorley Borough Council,http://statistics.data.gov.uk/id/local-authority/30UE,Corporate Management,1008,Health Environment & Neighbourhoods,Taxi Testing & Vehicle Safety Report,40234,Services,5027,MOT,10/04/2015,102411,658.20,Revenue,Chorley Autocare Ltd,17110
Chorley Borough Council,http://statistics.data.gov.uk/id/local-authority/30UE,Corporate Management,1008,Health Environment & Neighbourhoods,Taxi Testing & Vehicle Safety Report,40234,Services,5027,Taxi Test,10/04/2015,102411,102.60,Revenue,Chorley Autocare Ltd,17110
Chorley Borough Council,http://statistics.data.gov.uk/id/local-authority/30UE,Democratic Represent and  Mgnt,1007,Chief Executives Office,Use Of Transport - Mayoral Car,30015,Transport Recharges,5017,Mayor Car Wash,15/04/2015,102421,3.08,Revenue,Chorley BC Petty Cash,16301
Chorley Borough Council,http://statistics.data.gov.uk/id/local-authority/30UE,Central Support Services,1009,Chief Executives Office,Community Develop Initiatives,40185,Miscellaneous Expenses,5034,Yarn for Cycle Bomb,15/04/2015,102421,16.60,Revenue,Chorley BC Petty Cash,16301
Chorley Borough Council,http://statistics.data.gov.uk/id/local-authority/30UE,Democratic Represent and  Mgnt,1007,Chief Executives Office,Tools & Equipment - Purchase,40003,"Equipment, Furniture & Materia",5023,Repair Stock Truck Wheel,15/04/2015,102421,14.58,Revenue,Chorley BC Petty Cash,16301
Chorley Borough Council,http://statistics.data.gov.uk/id/local-authority/30UE,Central Support Services,1009,Chief Executives Office,Community Develop Initiatives,40185,Miscellaneous Expenses,5034,Chorley Grand Prix Equipment,15/04/2015,102421,10.79,Revenue,Chorley BC Petty Cash,16301
Chorley Borough Council,http://statistics.data.gov.uk/id/local-authority/30UE,Democratic Represent and  Mgnt,1007,Chief Executives Office,Use Of Transport - Mayoral Car,30015,Transport Recharges,5017,Mayoral Car Wash and Bumber Shine Spray,15/04/2015,102421,5.83,Revenue,Chorley BC Petty Cash,16301
Chorley Borough Council,http://statistics.data.gov.uk/id/local-authority/30UE,Development Control,1091,Chief Executives Office,Stationery,40050,"Printing, Stationery & General",5026,Pack of Sharpie and Gel Pens,15/04/2015,102421,8.73,Revenue,Chorley BC Petty Cash,16301
Chorley Borough Council,http://statistics.data.gov.uk/id/local-authority/30UE,Central Support Services,1009,Chief Executives Office,Community Develop Initiatives,40185,Miscellaneous Expenses,5034,Couch to 5K Document frame,15/04/2015,102421,5.00,Revenue,Chorley BC Petty Cash,16301
Chorley Borough Council,http://statistics.data.gov.uk/id/local-authority/30UE,Central Support Services,1009,Chief Executives Office,Refreshments,40036,Catering,5024,Milk for Lancastrian,15/04/2015,102421,2.78,Revenue,Chorley BC Petty Cash,16301
Chorley Borough Council,http://statistics.data.gov.uk/id/local-authority/30UE,Democratic Represent and  Mgnt,1007,Chief Executives Office,Lifelong Learning Activities,40194,Miscellaneous Expenses,5034,Antique Stamped Horse Brass for Astley Hall,15/04/2015,102421,4.74,Revenue,Chorley BC Petty Cash,16301
Chorley Borough Council,http://statistics.data.gov.uk/id/local-authority/30UE,Democratic Represent and  Mgnt,1007,Chief Executives Office,Lifelong Learning Activities,40194,Miscellaneous Expenses,5034,Brass Table Crumb Tray for Astley Hall,15/04/2015,102421,7.17,Revenue,Chorley BC Petty Cash,16301
Chorley Borough Council,http://statistics.data.gov.uk/id/local-authority/30UE,Service Management & Support,1009,Chief Executives Office,Vehicle Trackers - Leasing,30046,Direct Transport Costs,5016,Postage for sending units back to supplier in Barnsley,15/04/2015,102421,8.45,Revenue,Chorley BC Petty Cash,16301
Chorley Borough Council,http://statistics.data.gov.uk/id/local-authority/30UE,Unapportionable Central OHeads,1009,Chief Executives Office,Refreshments,40036,Catering,5024,Refreshments for Parlour Visits,15/04/2015,102421,7.00,Revenue,Chorley BC Petty Cash,16301
Chorley Borough Council,http://statistics.data.gov.uk/id/local-authority/30UE,Democratic Represent and  Mgnt,1007,Chief Executives Office,Use Of Transport - Mayoral Car,30015,Transport Recharges,5017,Mayoral Car Wash,15/04/2015,102421,3.08,Revenue,Chorley BC Petty Cash,16301
Chorley Borough Council,http://statistics.data.gov.uk/id/local-authority/30UE,Democratic Represent and  Mgnt,1007,Chief Executives Office,Use Of Transport - Mayoral Car,30015,Transport Recharges,5017,Mayoral Car Wash,15/04/2015,102421,4.17,Revenue,Chorley BC Petty Cash,16301
Chorley Borough Council,http://statistics.data.gov.uk/id/local-authority/30UE,Central Support Services,1009,Chief Executives Office,Children's Activities,40188,Miscellaneous Expenses,5034,Arts Materials for Holiday Activity,15/04/2015,102421,5.48,Revenue,Chorley BC Petty Cash,16301
Chorley Borough Council,http://statistics.data.gov.uk/id/local-authority/30UE,Central Support Services,1009,Chief Executives Office,Children's Activities,40188,Miscellaneous Expenses,5034,Arts Materials for Holiday Activity,15/04/2015,102421,11.63,Revenue,Chorley BC Petty Cash,16301
Chorley Borough Council,http://statistics.data.gov.uk/id/local-authority/30UE,Central Support Services,1009,Chief Executives Office,Children's Activities,40188,Miscellaneous Expenses,5034,Arts Materials for Chinese New Year,15/04/2015,102421,14.98,Revenue,Chorley BC Petty Cash,16301
Chorley Borough Council,http://statistics.data.gov.uk/id/local-authority/30UE,Central Support Services,1009,Chief Executives Office,Children's Activities,40188,Miscellaneous Expenses,5034,Items for Chillout RUAG Pancake Day,15/04/2015,102421,14.64,Revenue,Chorley BC Petty Cash,16301
Chorley Borough Council,http://statistics.data.gov.uk/id/local-authority/30UE,Central Support Services,1009,Chief Executives Office,Telephones - Maintenance,40233,Communication and Computing,5028,Rechargable batteries for use in cordless phone,15/04/2015,102421,8.33,Revenue,Chorley BC Petty Cash,16301
Chorley Borough Council,http://statistics.data.gov.uk/id/local-authority/30UE,Corporate Management,1008,Chief Executives Office,Exhibitions & Special Events,40158,Miscellaneous Expenses,5034,Wicker Basket for Easter Activities,15/04/2015,102421,4.16,Revenue,Chorley BC Petty Cash,16301
Chorley Borough Council,http://statistics.data.gov.uk/id/local-authority/30UE,Economic Development,1096,Chief Executives Office,Miscellaneous Expenses,40200,Miscellaneous Expenses,5034,Window Cleaning Service to ex McDonalds one off,15/04/2015,102421,18.00,Revenue,Chorley BC Petty Cash,16301
Chorley Borough Council,http://statistics.data.gov.uk/id/local-authority/30UE,Unapportionable Central OHeads,1009,Chief Executives Office,Exhibitions & Special Events,40158,Miscellaneous Expenses,5034,Cable Ties for Banners,15/04/2015,102421,1.24,Revenue,Chorley BC Petty Cash,16301
Chorley Borough Council,http://statistics.data.gov.uk/id/local-authority/30UE,Central Support Services,1009,Chief Executives Office,Refreshments,40036,Catering,5024,Orange Juice,15/04/2015,102421,6.80,Revenue,Chorley BC Petty Cash,16301
Chorley Borough Council,http://statistics.data.gov.uk/id/local-authority/30UE,Democratic Represent and  Mgnt,1007,Chief Executives Office,Use Of Transport - Mayoral Car,30015,Transport Recharges,5017,Parking for Mayoral Visit to York,15/04/2015,102421,6.00,Revenue,Chorley BC Petty Cash,16301
Chorley Borough Council,http://statistics.data.gov.uk/id/local-authority/30UE,Unapportionable Central OHeads,1009,Chief Executives Office,Tools & Equipment - Purchase,40003,"Equipment, Furniture & Materia",5023,Insulation Tape and Bowl,15/04/2015,102421,9.78,Revenue,Chorley BC Petty Cash,16301
Chorley Borough Council,http://statistics.data.gov.uk/id/local-authority/30UE,Democratic Represent and  Mgnt,1007,Chief Executives Office,Use Of Transport - Mayoral Car,30015,Transport Recharges,5017,Mayoral Car Wash,15/04/2015,102421,4.17,Revenue,Chorley BC Petty Cash,16301
Chorley Borough Council,http://statistics.data.gov.uk/id/local-authority/30UE,Central Support Services,1009,Chief Executives Office,Community Develop Initiatives,40185,Miscellaneous Expenses,5034,Materials for Knitting Project,15/04/2015,102421,16.54,Revenue,Chorley BC Petty Cash,16301
Chorley Borough Council,http://statistics.data.gov.uk/id/local-authority/30UE,Central Support Services,1009,Chief Executives Office,Community Develop Initiatives,40185,Miscellaneous Expenses,5034,Materials for Grand Prix Project,15/04/2015,102421,13.38,Revenue,Chorley BC Petty Cash,16301
Chorley Borough Council,http://statistics.data.gov.uk/id/local-authority/30UE,Democratic Represent and  Mgnt,1007,Chief Executives Office,Refreshments,40036,Catering,5024,Mayoral Car Wash,15/04/2015,102421,4.17,Revenue,Chorley BC Petty Cash,16301
Chorley Borough Council,http://statistics.data.gov.uk/id/local-authority/30UE,Central Support Services,1009,Chief Executives Office,Miscellaneous Expenses,40200,Miscellaneous Expenses,5034,Items for refurbishment of street names plate,15/04/2015,102421,3.33,Revenue,Chorley BC Petty Cash,16301
Chorley Borough Council,http://statistics.data.gov.uk/id/local-authority/30UE,Central Support Services,1009,Chief Executives Office,Community Develop Initiatives,40185,Miscellaneous Expenses,5034,Items for Chorley Grand Prix,15/04/2015,102421,3.00,Revenue,Chorley BC Petty Cash,16301
Chorley Borough Council,http://statistics.data.gov.uk/id/local-authority/30UE,Central Support Services,1009,Chief Executives Office,Community Develop Initiatives,40185,Miscellaneous Expenses,5034,Items for Chorley Grand Prix,15/04/2015,102421,6.67,Revenue,Chorley BC Petty Cash,16301
Chorley Borough Council,http://statistics.data.gov.uk/id/local-authority/30UE,Central Support Services,1009,Chief Executives Office,Community Develop Initiatives,40185,Miscellaneous Expenses,5034,Items for Easter Activity Social Group,15/04/2015,102421,9.55,Revenue,Chorley BC Petty Cash,16301
Chorley Borough Council,http://statistics.data.gov.uk/id/local-authority/30UE,Central Support Services,1009,Chief Executives Office,Community Develop Initiatives,40185,Miscellaneous Expenses,5034,Items for Chorley Grand Prix,15/04/2015,102421,16.65,Revenue,Chorley BC Petty Cash,16301
Chorley Borough Council,http://statistics.data.gov.uk/id/local-authority/30UE,Central Support Services,1009,Chief Executives Office,Games/Playing Field Equipment,40009,"Equipment, Furniture & Materia",5023,RUAG Eatser Materials,15/04/2015,102421,11.00,Revenue,Chorley BC Petty Cash,16301
Chorley Borough Council,http://statistics.data.gov.uk/id/local-authority/30UE,Central Support Services,1009,Chief Executives Office,Games/Playing Field Equipment,40009,"Equipment, Furniture & Materia",5023,Chillout Eatser Materials,15/04/2015,102421,9.87,Revenue,Chorley BC Petty Cash,16301
Chorley Borough Council,http://statistics.data.gov.uk/id/local-authority/30UE,Central Support Services,1009,Chief Executives Office,Community Develop Initiatives,40185,Miscellaneous Expenses,5034,Knitting Project Materials,15/04/2015,102421,15.87,Revenue,Chorley BC Petty Cash,16301
Chorley Borough Council,http://statistics.data.gov.uk/id/local-authority/30UE,Central Support Services,1009,Chief Executives Office,Community Develop Initiatives,40185,Miscellaneous Expenses,5034,Knitting Project Materials,15/04/2015,102421,3.33,Revenue,Chorley BC Petty Cash,16301
Chorley Borough Council,http://statistics.data.gov.uk/id/local-authority/30UE,Central Support Services,1009,Chief Executives Office,Refreshments,40036,Catering,5024,Refreshments,15/04/2015,102421,6.07,Revenue,Chorley BC Petty Cash,16301
Chorley Borough Council,http://statistics.data.gov.uk/id/local-authority/30UE,Unapportionable Central OHeads,1009,Governance,Fixtures & Fittings - Repair/Mtnce,20028,Fixtures and Fittings,5010,quote number 15944 Various light bulbs for Union St and the Town Hall,22/04/2015,102541,631.50,Revenue,Chorley Electrical Traders Ltd,16330
Chorley Borough Council,http://statistics.data.gov.uk/id/local-authority/30UE,Economic Development,1096,Economic Development,Grants To Other Organisations,40127,Grants and Subscriptions,5031,Starting in Business Grant,10/04/2015,102391,250.00,Revenue,NAME REDACTED,69738
Chorley Borough Council,http://statistics.data.gov.uk/id/local-authority/30UE,Service Management & Support,1009,Streetscene & Leisure Contracts,Transport Operating Leases,30029,Contrct Hire & Operating Lease,5018,Rental of Isuzu Beavertail DK56 JWO 31/03/15 to 30/03/16,24/04/2015,102617,"1,260.00",Revenue,Chrystal Consulting,17613
Chorley Borough Council,http://statistics.data.gov.uk/id/local-authority/30UE,Service Management & Support,1009,Streetscene & Leisure Contracts,Transport Operating Leases,30029,Contrct Hire & Operating Lease,5018,Rental of Isuzu Beavertail DK56 JWL from 31/03/15 to 30/03/16,24/04/2015,102617,"1,260.00",Revenue,Chrystal Consulting,17613
Chorley Borough Council,http://statistics.data.gov.uk/id/local-authority/30UE,Unapportionable Central OHeads,1009,Shared Service Arrangement,Training Course Fees,17010,Indirect Employee Expenses,5002,CIPFA - Business Strategy Module ,08/04/2015,102223,785.00,Revenue,CIPFA,16201
Chorley Borough Council,http://statistics.data.gov.uk/id/local-authority/30UE,Economic Development,1096,Economic Development,Tools & Equipment - Maintenance,40005,"Equipment, Furniture & Materia",5023,Supply x10 Corner Feet with Foot Plate,17/04/2015,102449,250.00,Revenue,City B Group Ltd,47300
Chorley Borough Council,http://statistics.data.gov.uk/id/local-authority/30UE,Business Support,1095,Policy & Performance,Research & Feasibilities,40079,Services,5027,For the provision of consulting engineering services in relation to Market Walk,24/04/2015,102714,"1,500.00",Revenue,Clancy Consulting Ltd,69061
Chorley Borough Council,http://statistics.data.gov.uk/id/local-authority/30UE,Central Support Services,1009,Health Environment & Neighbourhoods,Miscellaneous Expenses,40200,Miscellaneous Expenses,5034,Re-Imbursement,15/04/2015,102392,250.00,Revenue,Clayton Brook Children`s Centre,69751
Chorley Borough Council,http://statistics.data.gov.uk/id/local-authority/30UE,Payments of Precepts to Parish,1018,"Customer, ICT & Transactional",Parish Council Tax,4500,Revenue Account Transfers,Balance,Precepts,17/04/2015,102569,"65,432.00",Revenue,Clayton-Le-Woods Parish Coun.,17024
Chorley Borough Council,http://statistics.data.gov.uk/id/local-authority/30UE,Corporate Management,1008,"Customer, ICT & Transactional",Contributions Parish Councils,40144,Grants and Subscriptions,5031,Precepts,17/04/2015,102569,"11,458.00",Revenue,Clayton-Le-Woods Parish Coun.,17024
Chorley Borough Council,http://statistics.data.gov.uk/id/local-authority/30UE,Public Transport,1067,Streetscene & Leisure Contracts,Bus Shelters -Maintenance,20062,Grounds Maintenance Costs,5013,Supply and install bus shelter as per your quote No 16108/2015 to be installed at Runshaw Lane as discussed,22/04/2015,102626,"1,625.00",Revenue,Commutaports,56228
Chorley Borough Council,http://statistics.data.gov.uk/id/local-authority/30UE,Public Transport,1067,Streetscene & Leisure Contracts,Bus Shelters -Maintenance,20062,Grounds Maintenance Costs,5013,Supply and install bus shelter as per your quote number 16107/2015 at Coppull Rd near junction Birkacre Rd,22/04/2015,102627,"1,625.00",Revenue,Commutaports,56228
Chorley Borough Council,http://statistics.data.gov.uk/id/local-authority/30UE,Capital,Capital,Streetscene & Leisure Contracts,Main Contractor,3007,Capital Expenditure,Capital,Astley Park Woodland edge path from Sensory Garden to Woodland - Quote ref JE5048 14.  To start ASAP.,29/04/2015,102864,"5,028.79",Capital,Conservation Contracts North West,20520
Chorley Borough Council,http://statistics.data.gov.uk/id/local-authority/30UE,Capital,Capital,Streetscene & Leisure Contracts,Main Contractor,3007,Capital Expenditure,Capital,Quote JE5126 14 - To supply necessary temporary fencing/barriers and signage as required to secure the site ,29/04/2015,102865,"2,183.51",Capital,Conservation Contracts North West,20520
Chorley Borough Council,http://statistics.data.gov.uk/id/local-authority/30UE,Payments of Precepts to Parish,1018,"Customer, ICT & Transactional",Parish Council Tax,4500,Revenue Account Transfers,Balance,Precepts,17/04/2015,102568,"73,274.00",Revenue,Coppull Parish Council,17025
Chorley Borough Council,http://statistics.data.gov.uk/id/local-authority/30UE,Corporate Management,1008,"Customer, ICT & Transactional",Contributions Parish Councils,40144,Grants and Subscriptions,5031,Precepts,17/04/2015,102568,"10,576.00",Revenue,Coppull Parish Council,17025
Chorley Borough Council,http://statistics.data.gov.uk/id/local-authority/30UE,Service Management & Support,1009,Streetscene & Leisure Contracts,External Contractor,40198,Miscellaneous Expenses,5034,Works to be completed asper quotation ref: C 3876 as per below: BJ/DF/ Quote Ref:  C 3876,24/04/2015,102710,369.50,Revenue,Corlett Electrical Eng Co Ltd,16271
Chorley Borough Council,http://statistics.data.gov.uk/id/local-authority/30UE,Housing Strategy,1069,Streetscene & Leisure Contracts,Miscellaneous Expenses,40200,Miscellaneous Expenses,5034,Electrical works to Astley Village Community Centre. As per quote ref:  C 3851Contacted caretaker to arrange access ,29/04/2015,102721,668.90,Revenue,Corlett Electrical Eng Co Ltd,16271
Chorley Borough Council,http://statistics.data.gov.uk/id/local-authority/30UE,Housing Strategy,1069,Streetscene & Leisure Contracts,Miscellaneous Expenses,40200,Miscellaneous Expenses,5034,Electrical works to Eaves Green Community Centre. As per quote ref: C 3852 Contact caretaker to arrange access:  ,29/04/2015,102721,668.90,Revenue,Corlett Electrical Eng Co Ltd,16271
Chorley Borough Council,http://statistics.data.gov.uk/id/local-authority/30UE,Unapportionable Central OHeads,1009,Transformation Management,Planned Maintenance,20006,Repairs Maintenance & Alts,5005,PPM works for six months until 31st March 2015.,24/04/2015,102730,251.43,Revenue,Corlett Electrical Eng Co Ltd,16271
Chorley Borough Council,http://statistics.data.gov.uk/id/local-authority/30UE,Unapportionable Central OHeads,1009,Transformation Management,General Repairs - Reactive,20004,Repairs Maintenance & Alts,5005,Reactive blanket order until September 2015.,29/04/2015,102811,335.80,Revenue,Corlett Electrical Eng Co Ltd,16271
Chorley Borough Council,http://statistics.data.gov.uk/id/local-authority/30UE,Unapportionable Central OHeads,1009,Transformation Management,General Repairs - Reactive,20004,Repairs Maintenance & Alts,5005,Reactive blanket order until September 2015.,22/04/2015,102523,302.11,Revenue,Corona Energy Retail 2 Ltd,67249
Chorley Borough Council,http://statistics.data.gov.uk/id/local-authority/30UE,Payments of Precepts to Parish,1018,"Customer, ICT & Transactional",Parish Council Tax,4500,Revenue Account Transfers,Balance,Precepts,17/04/2015,102567,"21,190.00",Revenue,Croston Parish Council,17026
Chorley Borough Council,http://statistics.data.gov.uk/id/local-authority/30UE,Corporate Management,1008,"Customer, ICT & Transactional",Contributions Parish Councils,40144,Grants and Subscriptions,5031,Precepts,17/04/2015,102567,"1,440.00",Revenue,Croston Parish Council,17026
Chorley Borough Council,http://statistics.data.gov.uk/id/local-authority/30UE,Payments of Precepts to Parish,1018,"Customer, ICT & Transactional",Parish Council Tax,4500,Revenue Account Transfers,Balance,Precepts,17/04/2015,102566,"1,058.00",Revenue,Cuerden Parish Council,16207
Chorley Borough Council,http://statistics.data.gov.uk/id/local-authority/30UE,Corporate Management,1008,"Customer, ICT & Transactional",Contributions Parish Councils,40144,Grants and Subscriptions,5031,Precepts,17/04/2015,102566,2.00,Revenue,Cuerden Parish Council,16207
Chorley Borough Council,http://statistics.data.gov.uk/id/local-authority/30UE,Unapportionable Central OHeads,1009,"Customer, ICT & Transactional",Photocopier Charges,40047,"Printing, Stationery & General",5026,Service agreement No: 602,29/04/2015,102581,395.00,Revenue,Cull Paperless Solutions Ltd,22097
Chorley Borough Council,http://statistics.data.gov.uk/id/local-authority/30UE,Business Support,1095,Policy & Performance,Research & Feasibilities,40079,Services,5027,transport engineering services relating to the Market Walk Extension project,24/04/2015,102764,"11,645.50",Revenue,Curtins Consulting Engineers,20049
Chorley Borough Council,http://statistics.data.gov.uk/id/local-authority/30UE,Business Support,1095,Policy & Performance,Research & Feasibilities,40079,Services,5027,transport engineering services relating to the Market Walk Extension project,29/04/2015,102861,"5,152.50",Revenue,Curtins Consulting Engineers,20049
Chorley Borough Council,http://statistics.data.gov.uk/id/local-authority/30UE,Capital,Capital,Streetscene & Leisure Contracts,Equipment,3014,Capital Expenditure,Capital,"Works to AHU at All Seasons Leisure Centre, Chorley.As per quotation 18/02/15.  Quotation Document entitled:",15/04/2015,102205,"4,209.23",Capital,Dantherm Limited,69269
Chorley Borough Council,http://statistics.data.gov.uk/id/local-authority/30UE,Unapportionable Central OHeads,1009,Transformation Management,General Repairs - Reactive,20004,Repairs Maintenance & Alts,5005,Carry out servicing of flushing mechanism to 11 wc`s as per your quotation (ORDER6123).,10/04/2015,102213,272.50,Revenue,Dart Valley Systems Ltd,68805
Chorley Borough Council,http://statistics.data.gov.uk/id/local-authority/30UE,Elections,1012,Governance,Canvass Payments,40081,Services,5027,stage three of extra canvass,29/04/2015,102780,"1,882.00",Revenue,DATA TRACKING LTD,67068
Chorley Borough Council,http://statistics.data.gov.uk/id/local-authority/30UE,Economic Development,1096,Economic Development,Grants To Other Organisations,40127,Grants and Subscriptions,5031,Starting in Business Grant,17/04/2015,102483,250.00,Revenue,NAME REDACTED,67528
Chorley Borough Council,http://statistics.data.gov.uk/id/local-authority/30UE,Unapportionable Central OHeads,1009,Policy & Performance,Miscellaneous Expenses,40200,Miscellaneous Expenses,5034,online access guide to venues payment 1 of 3,24/04/2015,102677,"5,076.67",Revenue,Disabled Enabled Limited trading as DisabledGo,69753
Chorley Borough Council,http://statistics.data.gov.uk/id/local-authority/30UE,Unapportionable Central OHeads,1009,Health Environment & Neighbourhoods,HR Recruitment Expenses,15200,Indirect Employee Expenses,5002,DBS Disclosure certificates,29/04/2015,102387,440.00,Revenue,Disclosure & Barring Service,16387
Chorley Borough Council,http://statistics.data.gov.uk/id/local-authority/30UE,Corporate Management,1008,Health Environment & Neighbourhoods,CRB Disclosure Fees,40070,Services,5027,2 DBS Checks for Licensing,29/04/2015,102387,88.00,Revenue,Disclosure & Barring Service,16387
Chorley Borough Council,http://statistics.data.gov.uk/id/local-authority/30UE,Business Support,1095,Transformation Management,Research & Feasibilities,40079,Services,5027,Survey on Flat Iron Car Park.,15/04/2015,102195,"7,808.00",Revenue,Drain Alert Ltd,16961
Chorley Borough Council,http://statistics.data.gov.uk/id/local-authority/30UE,Unapportionable Central OHeads,1009,Shared Service Arrangement,General Subscriptions,40146,Grants and Subscriptions,5031,Chorley Council`s subscription to the Chest for the period 1st April 2015 to 31st July 2015,24/04/2015,102742,510.00,Revenue,Due North LTD,22498
Chorley Borough Council,http://statistics.data.gov.uk/id/local-authority/30UE,Unapportionable Central OHeads,1009,Shared Service Arrangement,General Subscriptions,40146,Grants and Subscriptions,5031,South Ribble Borough Council`s subscription to the Chest for the period 1st April 2015 to 31st July 2015,24/04/2015,102743,510.00,Revenue,Due North LTD,22498
Chorley Borough Council,http://statistics.data.gov.uk/id/local-authority/30UE,Unapportionable Central OHeads,1009,Transformation Management,General Repairs - Reactive,20004,Repairs Maintenance & Alts,5005,Install 22 sockets at the Town Hall & Union Street meeting rooms.,15/04/2015,102432,934.06,Revenue,Eccleston Electrical Services Limited,17529
Chorley Borough Council,http://statistics.data.gov.uk/id/local-authority/30UE,Payments of Precepts to Parish,1018,"Customer, ICT & Transactional",Parish Council Tax,4500,Revenue Account Transfers,Balance,Precepts,17/04/2015,102565,"41,324.00",Revenue,Eccleston Parish Council,17027
Chorley Borough Council,http://statistics.data.gov.uk/id/local-authority/30UE,Corporate Management,1008,"Customer, ICT & Transactional",Contributions Parish Councils,40144,Grants and Subscriptions,5031,Precepts,17/04/2015,102565,"1,636.00",Revenue,Eccleston Parish Council,17027
Chorley Borough Council,http://statistics.data.gov.uk/id/local-authority/30UE,Service Management & Support,1009,Streetscene & Leisure Contracts,Supplies-Grounds Maintenance,40025,"Equipment, Furniture & Materia",5023,I Willow figure with telescope,22/04/2015,102594,500.00,Revenue,Eco-Arts,21984
Chorley Borough Council,http://statistics.data.gov.uk/id/local-authority/30UE,Economic Development,1096,Economic Development,Grants To Other Organisations,40127,Grants and Subscriptions,5031,starting in business grant,29/04/2015,102825,250.00,Revenue,NAME REDACTED,69928
Chorley Borough Council,http://statistics.data.gov.uk/id/local-authority/30UE,Community Development,1097,Governance,Rent/Hire Of Premises,20017,Premises Rents,5007,Annual Rent in respect of 29 Market Street from 28 September 2014,10/04/2015,102408,"3,125.00",Revenue,Elmwood Property Investments Limited,60926
Chorley Borough Council,http://statistics.data.gov.uk/id/local-authority/30UE,Development Control,1091,Planning,Miscellaneous Expenses,40200,Miscellaneous Expenses,5034,Planning App Refund,24/04/2015,102775,"3,080.00",Revenue,Elmwood Property Investments Limited,60926
Chorley Borough Council,http://statistics.data.gov.uk/id/local-authority/30UE,Capital,Capital,Streetscene & Leisure Contracts,Main Contractor,3007,Capital Expenditure,Capital,Civil engineering and landscaping works at Rangletts Recreation Ground,15/04/2015,102355,"25,293.47",Capital,English Landscapes Ltd,67982
Chorley Borough Council,http://statistics.data.gov.uk/id/local-authority/30UE,Central Support Services,1009,Health Environment & Neighbourhoods,Exhibitions & Special Events,40158,Miscellaneous Expenses,5034,"Days activities for Junior Ctizens on Weds 18th Feb 2015, with 15 young people am & 15 young people pm ",15/04/2015,102469,270.00,Revenue,Eqwise Ltd,68974
Chorley Borough Council,http://statistics.data.gov.uk/id/local-authority/30UE,Payments of Precepts to Parish,1018,"Customer, ICT & Transactional",Parish Council Tax,4500,Revenue Account Transfers,Balance,Precepts,17/04/2015,102564,"107,800.00",Revenue,Euxton Parish Council,16838
Chorley Borough Council,http://statistics.data.gov.uk/id/local-authority/30UE,Corporate Management,1008,"Customer, ICT & Transactional",Contributions Parish Councils,40144,Grants and Subscriptions,5031,Precepts,17/04/2015,102564,"1,709.00",Revenue,Euxton Parish Council,16838
Chorley Borough Council,http://statistics.data.gov.uk/id/local-authority/30UE,Economic Development,1096,Economic Development,Grants To Other Organisations,40127,Grants and Subscriptions,5031,starting in business grant,29/04/2015,102823,250.00,Revenue,Evoke Trading Ltd,69927
Chorley Borough Council,http://statistics.data.gov.uk/id/local-authority/30UE,Unapportionable Central OHeads,1009,"Customer, ICT & Transactional",Search Fees,40068,Services,5027,Citizen view Licence,17/04/2015,102467,"2,575.00",Revenue,Experian Limited,17797
Chorley Borough Council,http://statistics.data.gov.uk/id/local-authority/30UE,Service Management & Support,1009,Streetscene & Leisure Contracts,Tools & Equipment - Maintenance,40005,"Equipment, Furniture & Materia",5023,Supply items as per Email from all parts supplied,08/04/2015,102190,616.39,Revenue,F R Sharrock Ltd,18091
Chorley Borough Council,http://statistics.data.gov.uk/id/local-authority/30UE,Service Management & Support,1009,Streetscene & Leisure Contracts,Tools & Equipment - Purchase,40003,"Equipment, Furniture & Materia",5023,Supply 1 x Ransome 213 Highway with 4 bladed 8`` cylinders as quoted through via the chest,22/04/2015,102543,"23,944.00",Revenue,F R Sharrock Ltd,18091
Chorley Borough Council,http://statistics.data.gov.uk/id/local-authority/30UE,Service Management & Support,1009,Streetscene & Leisure Contracts,Tools & Equipment - Purchase,40003,"Equipment, Furniture & Materia",5023,Reg Fee,22/04/2015,102543,55.00,Revenue,F R Sharrock Ltd,18091
Chorley Borough Council,http://statistics.data.gov.uk/id/local-authority/30UE,Service Management & Support,1009,Streetscene & Leisure Contracts,Hire Of Transport,30028,Contrct Hire & Operating Lease,5018,Hire of Case tractor and McConnell flail at price quoted via the chest for 12 month period. From 0/04/2015 to 31/03/2015,22/04/2015,102589,"1,639.84",Revenue,F R Sharrock Ltd,18091
Chorley Borough Council,http://statistics.data.gov.uk/id/local-authority/30UE,Service Management & Support,1009,Streetscene & Leisure Contracts,Freight Transport Assoc Fees,40150,Grants and Subscriptions,5031,Carryout 6 weekly safety inspection on DK07lde for Olicence compliance,15/04/2015,102434,115.33,Revenue,Freight Transport Assoc Ltd,16333
Chorley Borough Council,http://statistics.data.gov.uk/id/local-authority/30UE,Service Management & Support,1009,Streetscene & Leisure Contracts,Freight Transport Assoc Fees,40150,Grants and Subscriptions,5031,Carryout 6 weekly safety inspection on DK56JWO for Olicence compliance,15/04/2015,102434,115.33,Revenue,Freight Transport Assoc Ltd,16333
Chorley Borough Council,http://statistics.data.gov.uk/id/local-authority/30UE,Service Management & Support,1009,Streetscene & Leisure Contracts,Freight Transport Assoc Fees,40150,Grants and Subscriptions,5031,Carryout 6 weekly safety inspection on RV14DVB for Olicence compliance,15/04/2015,102434,115.33,Revenue,Freight Transport Assoc Ltd,16333
Chorley Borough Council,http://statistics.data.gov.uk/id/local-authority/30UE,Capital,Capital,Housing,Grants,3002,Capital Expenditure,Capital,ADDRESS REDACTED,22/04/2015,102645,"3,705.00",Capital,G McGavock Ltd,16921
Chorley Borough Council,http://statistics.data.gov.uk/id/local-authority/30UE,Democratic Represent and  Mgnt,1007,Streetscene & Leisure Contracts,Fixtures & Fittings - Purchase,20027,Fixtures and Fittings,5010,Works to All Seasons Leisure Centre.To take out 9 x corroded aluminium flues and replace with 9 x stainless steel flues ,15/04/2015,102202,"4,215.10",Revenue,G.O.S. Heating Limited,59990
Chorley Borough Council,http://statistics.data.gov.uk/id/local-authority/30UE,Democratic Represent and  Mgnt,1007,Streetscene & Leisure Contracts,Security Service,40062,Services,5027,All Seasons,15/04/2015,102501,142.96,Revenue,G4S Cash Solutions UK Ltd,22099
Chorley Borough Council,http://statistics.data.gov.uk/id/local-authority/30UE,Democratic Represent and  Mgnt,1007,Streetscene & Leisure Contracts,Security Service,40062,Services,5027,Brinscall Swimming Pool,15/04/2015,102501,55.97,Revenue,G4S Cash Solutions UK Ltd,22099
Chorley Borough Council,http://statistics.data.gov.uk/id/local-authority/30UE,Unapportionable Central OHeads,1009,Streetscene & Leisure Contracts,Security Service,40062,Services,5027,Civic Offices,15/04/2015,102501,55.97,Revenue,G4S Cash Solutions UK Ltd,22099
Chorley Borough Council,http://statistics.data.gov.uk/id/local-authority/30UE,Democratic Represent and  Mgnt,1007,Streetscene & Leisure Contracts,Security Service,40062,Services,5027,Clayton Green Sports Centre,15/04/2015,102501,55.97,Revenue,G4S Cash Solutions UK Ltd,22099
Chorley Borough Council,http://statistics.data.gov.uk/id/local-authority/30UE,Homelessness,1075,Streetscene & Leisure Contracts,Security Service,40062,Services,5027,Cotswold Supported Housin,15/04/2015,102501,27.97,Revenue,G4S Cash Solutions UK Ltd,22099
Chorley Borough Council,http://statistics.data.gov.uk/id/local-authority/30UE,Democratic Represent and  Mgnt,1007,Streetscene & Leisure Contracts,Burglar Alarms & Security Systems,20075,Fixtures and Fittings,5010,Keyholding Services,15/04/2015,102384,757.36,Revenue,G4S Secure Solutions (UK) Ltd,59898
Chorley Borough Council,http://statistics.data.gov.uk/id/local-authority/30UE,Business Support,1095,Transformation Management,Electricity,20013,Energy Costs,5006,Gillibrand street,24/04/2015,102712,372.71,Revenue,Gazprom Energy,56502
Chorley Borough Council,http://statistics.data.gov.uk/id/local-authority/30UE,Business Support,1095,Transformation Management,Electricity,20013,Energy Costs,5006,Gillibrand Street,24/04/2015,102713,"1,076.41",Revenue,Gazprom Energy,56502
Chorley Borough Council,http://statistics.data.gov.uk/id/local-authority/30UE,Capital,Capital,Streetscene & Leisure Contracts,Main Contractor,3007,Capital Expenditure,Capital,"Work in visiting the hall to consider repairs to the Great Hall. Dav tech drawings 4 days @ 350 per day Opening up works ",08/04/2015,102172,"4,081.60",Capital,Geoff W Maybank,64389
Chorley Borough Council,http://statistics.data.gov.uk/id/local-authority/30UE,Capital,Capital,Streetscene & Leisure Contracts,Main Contractor,3007,Capital Expenditure,Capital,"Work in visiting the hall to introduce consultants. 2 day visit Tim OdgersHalf Day visit",08/04/2015,102173,951.80,Capital,Geoff W Maybank,64389
Chorley Borough Council,http://statistics.data.gov.uk/id/local-authority/30UE,Capital,Capital,Streetscene & Leisure Contracts,Main Contractor,3007,Capital Expenditure,Capital,Invoice Number: 2015/mbc/4019 Work in visiting the Hall with Dav Smith Buildings Archaeology.Tech Recording Drawings,15/04/2015,102394,"3,100.00",Capital,Geoff W Maybank,64389
Chorley Borough Council,http://statistics.data.gov.uk/id/local-authority/30UE,Economic Development,1096,Economic Development,Grants To Other Organisations,40127,Grants and Subscriptions,5031,Starting in Business Grant,17/04/2015,102482,250.00,Revenue,NAME REDACTED,66811
Chorley Borough Council,http://statistics.data.gov.uk/id/local-authority/30UE,Central Support Services,1009,Health Environment & Neighbourhoods,Impounded Dogs Costs,40207,Miscellaneous Expenses,5034,Kennelling fees for 2014/15,08/04/2015,102246,650.00,Revenue,Glencoe Boarding Kennels,16734
Chorley Borough Council,http://statistics.data.gov.uk/id/local-authority/30UE,Central Support Services,1009,Health Environment & Neighbourhoods,Impounded Dogs Costs,40207,Miscellaneous Expenses,5034,Fees Collected,08/04/2015,102246,-65.00,Revenue,Glencoe Boarding Kennels,16734
Chorley Borough Council,http://statistics.data.gov.uk/id/local-authority/30UE,Central Support Services,1009,Health Environment & Neighbourhoods,Impounded Dogs Costs,40207,Miscellaneous Expenses,5034,Kennelling fees for 2014/15,10/04/2015,102359,560.00,Revenue,Glencoe Boarding Kennels,16734
Chorley Borough Council,http://statistics.data.gov.uk/id/local-authority/30UE,Central Support Services,1009,Health Environment & Neighbourhoods,Impounded Dogs Costs,40207,Miscellaneous Expenses,5034,Kennelling fees for 2014/15,10/04/2015,102360,690.00,Revenue,Glencoe Boarding Kennels,16734
Chorley Borough Council,http://statistics.data.gov.uk/id/local-authority/30UE,Central Support Services,1009,Health Environment & Neighbourhoods,Impounded Dogs Costs,40207,Miscellaneous Expenses,5034,Fees Collected,10/04/2015,102360,-32.50,Revenue,Glencoe Boarding Kennels,16734
Chorley Borough Council,http://statistics.data.gov.uk/id/local-authority/30UE,Central Support Services,1009,Health Environment & Neighbourhoods,External Contractor,40198,Miscellaneous Expenses,5034,reactive and proactive graffitti removal,17/04/2015,102498,"1,246.87",Revenue,Graffiti Removal (North) Ltd,17320
Chorley Borough Council,http://statistics.data.gov.uk/id/local-authority/30UE,Corporate Management,1008,Shared Service Arrangement,External Audit,40064,Services,5027,NNDR Audit,10/04/2015,102422,900.00,Revenue,Grant Thornton UK LLP,57322
Chorley Borough Council,http://statistics.data.gov.uk/id/local-authority/30UE,Corporate Management,1008,Shared Service Arrangement,HM Land Registry Fees,40174,Miscellaneous Expenses,5034,Apr Land Reg,29/04/2015,102831,3.00,Revenue,H M Land Registry,17567
Chorley Borough Council,http://statistics.data.gov.uk/id/local-authority/30UE,Housing Strategy,1069,Shared Service Arrangement,HM Land Registry Fees,40174,Miscellaneous Expenses,5034,Apr Land Reg,29/04/2015,102831,6.00,Revenue,H M Land Registry,17567
Chorley Borough Council,http://statistics.data.gov.uk/id/local-authority/30UE,Unapportionable Central OHeads,1009,Shared Service Arrangement,HM Land Registry Fees,40174,Miscellaneous Expenses,5034,Apr Land Reg,29/04/2015,102831,21.00,Revenue,H M Land Registry,17567
Chorley Borough Council,http://statistics.data.gov.uk/id/local-authority/30UE,Unapportionable Central OHeads,1009,Shared Service Arrangement,HM Land Registry Fees,40174,Miscellaneous Expenses,5034,Apr Land Reg,29/04/2015,102831,263.00,Revenue,H M Land Registry,17567
Chorley Borough Council,http://statistics.data.gov.uk/id/local-authority/30UE,Unapportionable Central OHeads,1009,Shared Service Arrangement,HM Land Registry Fees,40174,Miscellaneous Expenses,5034,Apr Land Reg,29/04/2015,102831,33.00,Revenue,H M Land Registry,17567
Chorley Borough Council,http://statistics.data.gov.uk/id/local-authority/30UE,Development Control,1091,Shared Service Arrangement,HM Land Registry Fees,40174,Miscellaneous Expenses,5034,Apr Land Reg,29/04/2015,102831,153.00,Revenue,H M Land Registry,17567
Chorley Borough Council,http://statistics.data.gov.uk/id/local-authority/30UE,Corporate Management,1008,Shared Service Arrangement,HM Land Registry Fees,40174,Miscellaneous Expenses,5034,Apr Land Reg,29/04/2015,102831,129.00,Revenue,H M Land Registry,17567
Chorley Borough Council,http://statistics.data.gov.uk/id/local-authority/30UE,Payments of Precepts to Parish,1018,"Customer, ICT & Transactional",Parish Council Tax,4500,Revenue Account Transfers,Balance,Precepts,17/04/2015,102563,"8,783.00",Revenue,Heapey Parish Council,17028
Chorley Borough Council,http://statistics.data.gov.uk/id/local-authority/30UE,Corporate Management,1008,"Customer, ICT & Transactional",Contributions Parish Councils,40144,Grants and Subscriptions,5031,Precepts,17/04/2015,102563,327.00,Revenue,Heapey Parish Council,17028
Chorley Borough Council,http://statistics.data.gov.uk/id/local-authority/30UE,Payments of Precepts to Parish,1018,"Customer, ICT & Transactional",Parish Council Tax,4500,Revenue Account Transfers,Balance,Precepts,17/04/2015,102562,"7,165.00",Revenue,Heath Charnock Parish Council,16208
Chorley Borough Council,http://statistics.data.gov.uk/id/local-authority/30UE,Corporate Management,1008,"Customer, ICT & Transactional",Contributions Parish Councils,40144,Grants and Subscriptions,5031,Precepts,17/04/2015,102562,335.00,Revenue,Heath Charnock Parish Council,16208
Chorley Borough Council,http://statistics.data.gov.uk/id/local-authority/30UE,Business Support,1095,Economic Development,Miscellaneous Expenses,40200,Miscellaneous Expenses,5034,"Pop Up Exhibition Stand for Choose Chorley, with lights and carry case, inc artwork and proof case for plinth graphic wrap.",29/04/2015,102856,"1,130.00",Revenue,Heckfords,58862
Chorley Borough Council,http://statistics.data.gov.uk/id/local-authority/30UE,Economic Development,1096,Economic Development,Grants To Other Organisations,40127,Grants and Subscriptions,5031,Pop Up A4 display holders  258 plus VAT,29/04/2015,102857,258.00,Revenue,Heckfords,58862
Chorley Borough Council,http://statistics.data.gov.uk/id/local-authority/30UE,Payments of Precepts to Parish,1018,"Customer, ICT & Transactional",Parish Council Tax,4500,Revenue Account Transfers,Balance,Precepts,17/04/2015,102561,"11,088.00",Revenue,Heskin Parish Council,17029
Chorley Borough Council,http://statistics.data.gov.uk/id/local-authority/30UE,Corporate Management,1008,"Customer, ICT & Transactional",Contributions Parish Councils,40144,Grants and Subscriptions,5031,Precepts,17/04/2015,102561,544.00,Revenue,Heskin Parish Council,17029
Chorley Borough Council,http://statistics.data.gov.uk/id/local-authority/30UE,Central Support Services,1009,"Customer, ICT & Transactional",Computer Software-Purchase,40100,Communication and Computing,5028,2 x VMw vSphere Std 1P 3yr E-LTU (product numbe BD711AAE) vSphere licenses with 3 year care pack,29/04/2015,102536,"1,519.22",Revenue,Hewlett - Packard Limited,22335
Chorley Borough Council,http://statistics.data.gov.uk/id/local-authority/30UE,Central Support Services,1009,"Customer, ICT & Transactional",Computer Software-Purchase,40100,Communication and Computing,5028,9 x VMw vSphere EntPlus 1P 3yr E-LTU (product number BD715AAE) Additional VSphere for live environment with 3 year ,29/04/2015,102536,"23,852.43",Revenue,Hewlett - Packard Limited,22335
Chorley Borough Council,http://statistics.data.gov.uk/id/local-authority/30UE,Corporate Management,1008,Health Environment & Neighbourhoods,Training Course Fees,17010,Indirect Employee Expenses,5002,Over flow kennelling from July 2014 - March 2015,10/04/2015,102231,272.00,Revenue,High Heyes Kennells & Cattery,21663
Chorley Borough Council,http://statistics.data.gov.uk/id/local-authority/30UE,Payments of Precepts to Parish,1018,"Customer, ICT & Transactional",Parish Council Tax,4500,Revenue Account Transfers,Balance,Precepts,17/04/2015,102560,"4,833.00",Revenue,Hoghton Parish Council,16188
Chorley Borough Council,http://statistics.data.gov.uk/id/local-authority/30UE,Corporate Management,1008,"Customer, ICT & Transactional",Contributions Parish Councils,40144,Grants and Subscriptions,5031,Precepts,17/04/2015,102560,167.00,Revenue,Hoghton Parish Council,16188
Chorley Borough Council,http://statistics.data.gov.uk/id/local-authority/30UE,Community Development,1097,Policy & Performance,Miscellaneous Expenses,40200,Miscellaneous Expenses,5034,The supply of GRANTfinder and Open4Community,24/04/2015,102776,"11,700.00",Revenue,IDOX Software Limited,17542
Chorley Borough Council,http://statistics.data.gov.uk/id/local-authority/30UE,Control Accounts,Control,Shared Service Arrangement,Manual Control Account,1,Balance Sheet,Balance,,08/04/2015,101527,821.60,Revenue,Inland Revenue 065py00102078,17445
Chorley Borough Council,http://statistics.data.gov.uk/id/local-authority/30UE,Central Support Services,1009,Health Environment & Neighbourhoods,Miscellaneous Expenses,40200,Miscellaneous Expenses,5034,Supply  25 of 895 mm Literpickers product nos SPECH001 at contract price of 12.35 each,22/04/2015,102624,308.75,Revenue,Jewsons Limited,17844
Chorley Borough Council,http://statistics.data.gov.uk/id/local-authority/30UE,Corporate Management,1008,Shared Service Arrangement,Employee Related Insurance,18003,Indirect Employee Expenses,5002,Property and Terrrorism insurance policy,08/04/2015,102299,"76,804.91",Revenue,JLT Speciality Ltd,52747
Chorley Borough Council,http://statistics.data.gov.uk/id/local-authority/30UE,Service Management & Support,1009,Streetscene & Leisure Contracts,External Contractor,40198,Miscellaneous Expenses,5034,Construction and Rebuild in Astley Park The Evaders Garden for Chelsea Flower show as part of Chorley Flower Show,15/04/2015,102166,"10,000.00",Revenue,John Everiss Design Ltd,69632
Chorley Borough Council,http://statistics.data.gov.uk/id/local-authority/30UE,Service Management & Support,1009,Streetscene & Leisure Contracts,External Contractor,40198,Miscellaneous Expenses,5034,Construction and Rebuild in Astley Park The Evaders Garden for Chelsea Flower show as part of Chorley Flower Show,15/04/2015,102330,"10,000.00",Revenue,John Everiss Design Ltd,69632
Chorley Borough Council,http://statistics.data.gov.uk/id/local-authority/30UE,Service Management & Support,1009,Streetscene & Leisure Contracts,External Contractor,40198,Miscellaneous Expenses,5034,Construction and Rebuild in Astley Park The Evaders Garden for Chelsea Flower show as part of Chorley Flower Show,17/04/2015,102460,"10,000.00",Revenue,John Everiss Design Ltd,69632
Chorley Borough Council,http://statistics.data.gov.uk/id/local-authority/30UE,Elections,1012,Governance,Statutory Notices,40160,Miscellaneous Expenses,5034,Borough Notice of Election - Wednesday 25 March 2015 Lancashire Evening Post Statutory Notices,08/04/2015,102168,"1,138.32",Revenue,Johnston Publishing Ltd,20072
Chorley Borough Council,http://statistics.data.gov.uk/id/local-authority/30UE,Elections,1012,Governance,Statutory Notices,40160,Miscellaneous Expenses,5034,Parish Notice of Election 25 March 2015 - Lancashire Evening Post,08/04/2015,102169,"1,138.32",Revenue,Johnston Publishing Ltd,20072
Chorley Borough Council,http://statistics.data.gov.uk/id/local-authority/30UE,Elections,1012,Governance,Statutory Notices,40160,Miscellaneous Expenses,5034,Notice of Election - Parliamentary to be published in the Lancashire evening post on Wednesday 1 April 2015,10/04/2015,102324,885.36,Revenue,Johnston Publishing Ltd,20072
Chorley Borough Council,http://statistics.data.gov.uk/id/local-authority/30UE,Development Control,1091,Planning,Statutory Notices,40160,Miscellaneous Expenses,5034,Planning Public Notices to appear in the Chorley Guardian April 2015 to March 2016,24/04/2015,102707,263.68,Revenue,Johnston Publishing Ltd,20072
Chorley Borough Council,http://statistics.data.gov.uk/id/local-authority/30UE,Homelessness,1075,Housing,External Contractor,40198,Miscellaneous Expenses,5034,Provision of Housing Drop In & Mediation,24/04/2015,102750,"4,750.00",Revenue,Key,61252
Chorley Borough Council,http://statistics.data.gov.uk/id/local-authority/30UE,Homelessness,1075,Housing,Grants To Other Organisations,40127,Grants and Subscriptions,5031,"Provision of pre-tenancy training in Chorley, Preston, South Ribble and West Lancashire Q1 year 2.",29/04/2015,102862,"3,718.25",Revenue,Key,61252
Chorley Borough Council,http://statistics.data.gov.uk/id/local-authority/30UE,Central Support Services,1009,Health Environment & Neighbourhoods,Pest Control,20039,Cleaning and Domestic Supplies,5012,Gloria Pneumatic 5 Litre galvanised sprayer  including flat fan nozzle  GL0JNGALV,24/04/2015,102622,148.58,Revenue,Killgerm Chemicals Ltd,16879
Chorley Borough Council,http://statistics.data.gov.uk/id/local-authority/30UE,Central Support Services,1009,Health Environment & Neighbourhoods,Pest Control,20039,Cleaning and Domestic Supplies,5012,Flat fan nozzle,24/04/2015,102622,6.12,Revenue,Killgerm Chemicals Ltd,16879
Chorley Borough Council,http://statistics.data.gov.uk/id/local-authority/30UE,Central Support Services,1009,Health Environment & Neighbourhoods,Pest Control,20039,Cleaning and Domestic Supplies,5012,AF advance mouse boxes 2 x 100 boxes,24/04/2015,102622,69.48,Revenue,Killgerm Chemicals Ltd,16879
Chorley Borough Council,http://statistics.data.gov.uk/id/local-authority/30UE,Central Support Services,1009,Health Environment & Neighbourhoods,Pest Control,20039,Cleaning and Domestic Supplies,5012,Ficam W BOX OF 10 X 15 G  sachets PER BOX,24/04/2015,102622,314.70,Revenue,Killgerm Chemicals Ltd,16879
Chorley Borough Council,http://statistics.data.gov.uk/id/local-authority/30UE,Development Control,1091,Governance,Legal Fees,40171,Miscellaneous Expenses,5034,"Professional fees of David Manley QC in relation to Hut Lane, Chorley and possible Injunctive Proceedings",22/04/2015,102675,"1,500.00",Revenue,Kings Chambers Ltd,48008
Chorley Borough Council,http://statistics.data.gov.uk/id/local-authority/30UE,Control Accounts,Control,Shared Service Arrangement,General Balances,100,Balance Sheet,Balance,Sal Ded April 15,22/04/2015,102665,"1,181.74",Revenue,Labour Councillors Association,17577
Chorley Borough Council,http://statistics.data.gov.uk/id/local-authority/30UE,Public Transport,1067,Streetscene & Leisure Contracts,Other Fees,40212,Miscellaneous Expenses,5034,Net rental income to LCC for 2014/15 re Chorley Interchange,15/04/2015,102200,"17,000.00",Revenue,Lancashire County Council,17758
Chorley Borough Council,http://statistics.data.gov.uk/id/local-authority/30UE,Capital,Capital,Housing,Grants,3002,Capital Expenditure,Capital,55 Long Acre,10/04/2015,102374,"2,402.99",Capital,Lancashire County Council,17758
Chorley Borough Council,http://statistics.data.gov.uk/id/local-authority/30UE,Precepts and Collection Fund,Precepts,Shared Service Arrangement,LCC Precept,2009,Precepts & Collection Fund,Precept,april precept,29/04/2015,102897,"3,975,058.00",Revenue,Lancashire County Council,18386
Chorley Borough Council,http://statistics.data.gov.uk/id/local-authority/30UE,Collection Fund Revenue Accoun,,Shared Service Arrangement,NNDR County Share,2036,Precepts & Collection Fund,Precept,local share,29/04/2015,102898,"247,376.00",Revenue,Lancashire County Council,18386
Chorley Borough Council,http://statistics.data.gov.uk/id/local-authority/30UE,Unapportionable Central OHeads,1009,Shared Service Arrangement,Pensions Deficit Recovery Contributions,12003,Direct Employee Expenses,5001,ees march,29/04/2015,101974,"41,231.27",Revenue,Lancashire Pensions Services,16696
Chorley Borough Council,http://statistics.data.gov.uk/id/local-authority/30UE,Unapportionable Central OHeads,1009,Shared Service Arrangement,Pensions Deficit Recovery Contributions,12003,Direct Employee Expenses,5001,ers march,29/04/2015,101975,"69,350.57",Revenue,Lancashire Pensions Services,16696
Chorley Borough Council,http://statistics.data.gov.uk/id/local-authority/30UE,Unapportionable Central OHeads,1009,Shared Service Arrangement,Pensions Deficit Recovery Contributions,12003,Direct Employee Expenses,5001,Pension Defifcit Ded March 15,29/04/2015,102135,"59,133.33",Revenue,Lancashire Pensions Services,16696
Chorley Borough Council,http://statistics.data.gov.uk/id/local-authority/30UE,Control Accounts,Control,Shared Service Arrangement,Manual Control Account,1,Balance Sheet,Balance,REFUND,10/04/2015,CRREF39,848.96,Revenue,Lancashire Teaching Hospitals NHS FT,19003
Chorley Borough Council,http://statistics.data.gov.uk/id/local-authority/30UE,Collection Fund Revenue Accoun,,Shared Service Arrangement,NNDR Fire Share,2037,Precepts & Collection Fund,Precept,local share april,29/04/2015,102895,"27,487.00",Revenue,Lancs Combined Fire Authority,17768
Chorley Borough Council,http://statistics.data.gov.uk/id/local-authority/30UE,Precepts and Collection Fund,Precepts,Shared Service Arrangement,LCFA Precept,2011,Precepts & Collection Fund,Precept,april precept,29/04/2015,102896,"228,209.00",Revenue,Lancs Combined Fire Authority,17768
Chorley Borough Council,http://statistics.data.gov.uk/id/local-authority/30UE,Corporate Management,1008,Streetscene & Leisure Contracts,General Subscriptions,40146,Grants and Subscriptions,5031,LARAC membership fees 2015-2016,22/04/2015,102494,395.00,Revenue,Larac,16550
Chorley Borough Council,http://statistics.data.gov.uk/id/local-authority/30UE,Unapportionable Central OHeads,1009,Governance,Publications,40054,"Printing, Stationery & General",5026,Online renewal of Lexis Nexis subscription for period 01.04.15 - 31.03.16 50% recharge to be claimed from South Ribble BC,15/04/2015,102458,"11,896.00",Revenue,Lexis Nexis UK,16688
Chorley Borough Council,http://statistics.data.gov.uk/id/local-authority/30UE,Unapportionable Central OHeads,1009,"Customer, ICT & Transactional",Agency Staff,13000,Direct Employee Expenses,5001,Benefits processing work December,24/04/2015,102553,"4,437.10",Revenue,Liberata (Capacity Grid),67989
Chorley Borough Council,http://statistics.data.gov.uk/id/local-authority/30UE,Democratic Represent and  Mgnt,1007,Chief Executives Office,General Subscriptions,40146,Grants and Subscriptions,5031,LGA Subscription 2015/2016,10/04/2015,102404,"10,450.00",Revenue,Local Government Association,16243
Chorley Borough Council,http://statistics.data.gov.uk/id/local-authority/30UE,Democratic Represent and  Mgnt,1007,Chief Executives Office,Conferences - Members,40121,Expenses,5030,"3 x places on the LGA Annual Conference 2015, 30 June - 2 July, Harrogate Chief Executive, Leader and Opposition Leader",29/04/2015,102787,"1,485.00",Revenue,Local Government Association,16243
Chorley Borough Council,http://statistics.data.gov.uk/id/local-authority/30UE,Economic Development,1096,Economic Development,Publicity - Advertising,40157,Miscellaneous Expenses,5034,Full page advertisement for Town Centre Spring Events April & May 2015 as per discussions ,10/04/2015,102182,450.00,Revenue,Loop Publishing Ltd,18770
Chorley Borough Council,http://statistics.data.gov.uk/id/local-authority/30UE,Central Support Services,1009,Policy & Performance,Miscellaneous Expenses,40200,Miscellaneous Expenses,5034,Photography for the Chorley Grand Prix,29/04/2015,102843,295.00,Revenue,Martin Birchall Photography,22503
Chorley Borough Council,http://statistics.data.gov.uk/id/local-authority/30UE,Central Support Services,1009,Streetscene & Leisure Contracts,Miscellaneous Expenses,40200,Miscellaneous Expenses,5034,Please supply 120 small straw bales @ a cost of 3.20 per bale.  Total Cost = 384.  Delivery address is Chorley Council,15/04/2015,102179,384.00,Revenue,Martlands,20616
Chorley Borough Council,http://statistics.data.gov.uk/id/local-authority/30UE,Central Support Services,1009,Streetscene & Leisure Contracts,Miscellaneous Expenses,40200,Miscellaneous Expenses,5034,Please supply 120 small straw bales  a cost of 3.20 per bale.  Total Cost = 384.  Delivery address = Chorley Council,15/04/2015,102179,384.00,Revenue,Martlands,20616
Chorley Borough Council,http://statistics.data.gov.uk/id/local-authority/30UE,Democratic Represent and  Mgnt,1007,HR & Org. Development,Agency Staff,13000,Direct Employee Expenses,5001,Agency Staff,08/04/2015,102289,3.87,Revenue,Matrix SCM Ltd,22128
Chorley Borough Council,http://statistics.data.gov.uk/id/local-authority/30UE,Democratic Represent and  Mgnt,1007,HR & Org. Development,Agency Staff,13000,Direct Employee Expenses,5001,Agency Staff,08/04/2015,102289,430.80,Revenue,Matrix SCM Ltd,22128
Chorley Borough Council,http://statistics.data.gov.uk/id/local-authority/30UE,Corporate Management,1008,HR & Org. Development,Agency Staff,13000,Direct Employee Expenses,5001,Agency Staff,08/04/2015,102289,700.35,Revenue,Matrix SCM Ltd,22128
Chorley Borough Council,http://statistics.data.gov.uk/id/local-authority/30UE,Elections,1012,HR & Org. Development,Agency Staff,13000,Direct Employee Expenses,5001,Agency Staff,08/04/2015,102289,496.88,Revenue,Matrix SCM Ltd,22128
Chorley Borough Council,http://statistics.data.gov.uk/id/local-authority/30UE,Unapportionable Central OHeads,1009,HR & Org. Development,Agency Staff,13000,Direct Employee Expenses,5001,Agency Staff,08/04/2015,102289,498.87,Revenue,Matrix SCM Ltd,22128
Chorley Borough Council,http://statistics.data.gov.uk/id/local-authority/30UE,Democratic Represent and  Mgnt,1007,HR & Org. Development,Agency Staff,13000,Direct Employee Expenses,5001,Agency Staff,15/04/2015,102418,448.76,Revenue,Matrix SCM Ltd,22128
Chorley Borough Council,http://statistics.data.gov.uk/id/local-authority/30UE,Corporate Management,1008,HR & Org. Development,Agency Staff,13000,Direct Employee Expenses,5001,Agency Staff,15/04/2015,102418,560.28,Revenue,Matrix SCM Ltd,22128
Chorley Borough Council,http://statistics.data.gov.uk/id/local-authority/30UE,Unapportionable Central OHeads,1009,HR & Org. Development,Agency Staff,13000,Direct Employee Expenses,5001,Agency Staff,15/04/2015,102418,310.90,Revenue,Matrix SCM Ltd,22128
Chorley Borough Council,http://statistics.data.gov.uk/id/local-authority/30UE,Democratic Represent and  Mgnt,1007,HR & Org. Development,Agency Staff,13000,Direct Employee Expenses,5001,Agency Staff,22/04/2015,102534,403.88,Revenue,Matrix SCM Ltd,22128
Chorley Borough Council,http://statistics.data.gov.uk/id/local-authority/30UE,Corporate Management,1008,HR & Org. Development,Agency Staff,13000,Direct Employee Expenses,5001,Agency Staff,22/04/2015,102534,560.28,Revenue,Matrix SCM Ltd,22128
Chorley Borough Council,http://statistics.data.gov.uk/id/local-authority/30UE,Elections,1012,HR & Org. Development,Agency Staff,13000,Direct Employee Expenses,5001,Agency Staff,22/04/2015,102534,490.63,Revenue,Matrix SCM Ltd,22128
Chorley Borough Council,http://statistics.data.gov.uk/id/local-authority/30UE,Elections,1012,HR & Org. Development,Agency Staff,13000,Direct Employee Expenses,5001,Agency Staff,22/04/2015,102534,500.00,Revenue,Matrix SCM Ltd,22128
Chorley Borough Council,http://statistics.data.gov.uk/id/local-authority/30UE,Democratic Represent and  Mgnt,1007,HR & Org. Development,Agency Staff,13000,Direct Employee Expenses,5001,Agency Staff,29/04/2015,102772,2.15,Revenue,Matrix SCM Ltd,22128
Chorley Borough Council,http://statistics.data.gov.uk/id/local-authority/30UE,Democratic Represent and  Mgnt,1007,HR & Org. Development,Agency Staff,13000,Direct Employee Expenses,5001,Agency Staff,29/04/2015,102772,417.35,Revenue,Matrix SCM Ltd,22128
Chorley Borough Council,http://statistics.data.gov.uk/id/local-authority/30UE,Corporate Management,1008,HR & Org. Development,Agency Staff,13000,Direct Employee Expenses,5001,Agency Staff,29/04/2015,102772,700.35,Revenue,Matrix SCM Ltd,22128
Chorley Borough Council,http://statistics.data.gov.uk/id/local-authority/30UE,Elections,1012,HR & Org. Development,Agency Staff,13000,Direct Employee Expenses,5001,Agency Staff,29/04/2015,102772,581.25,Revenue,Matrix SCM Ltd,22128
Chorley Borough Council,http://statistics.data.gov.uk/id/local-authority/30UE,Payments of Precepts to Parish,1018,"Customer, ICT & Transactional",Parish Council Tax,4500,Revenue Account Transfers,Balance,Precepts,29/04/2015,102559,"25,986.00",Revenue,Mawdesley Parish Council,17570
Chorley Borough Council,http://statistics.data.gov.uk/id/local-authority/30UE,Corporate Management,1008,"Customer, ICT & Transactional",Contributions Parish Councils,40144,Grants and Subscriptions,5031,Precepts,29/04/2015,102559,794.00,Revenue,Mawdesley Parish Council,17570
Chorley Borough Council,http://statistics.data.gov.uk/id/local-authority/30UE,Unapportionable Central OHeads,1009,Transformation Management,General Repairs - Reactive,20004,Repairs Maintenance & Alts,5005,Reactive blanket order until September 2015.,10/04/2015,102227,"1,250.00",Revenue,Maxigiene Environmental Services Ltd,67160
Chorley Borough Council,http://statistics.data.gov.uk/id/local-authority/30UE,Service Management & Support,1009,Streetscene & Leisure Contracts,Supplies-Grounds Maintenance,40025,"Equipment, Furniture & Materia",5023,"20 ton of ultitrec delivered to Cloverfield, Clayton le Woods.",24/04/2015,102642,374.68,Revenue,Mc & Ma Stewart (Haulage Ltd),16627
Chorley Borough Council,http://statistics.data.gov.uk/id/local-authority/30UE,Service Management & Support,1009,Streetscene & Leisure Contracts,Supplies-Grounds Maintenance,40025,"Equipment, Furniture & Materia",5023,20mm to dust buff,24/04/2015,102644,357.66,Revenue,Mc & Ma Stewart (Haulage Ltd),16627
Chorley Borough Council,http://statistics.data.gov.uk/id/local-authority/30UE,Democratic Represent and  Mgnt,1007,Streetscene & Leisure Contracts,Conservation Of Exhibits,40059,Services,5027,"Astley Hall Museum and Art Gallery Annual Meaco Radio Warranty from 1/5/2015 - 750 Humidifier/Dehumidifier Ser 225 ",24/04/2015,102636,"1,330.00",Revenue,Meaco Measurement & Control Ltd,16527
Chorley Borough Council,http://statistics.data.gov.uk/id/local-authority/30UE,Economic Development,1096,Housing,Consultants` Fees,40077,Services,5027,PA2 Pesticide Crop Sprayer Course Including NPCT registration conducted 20th January 2015 at CBC Bengal Street Depot,24/04/2015,102773,100.00,Revenue,Millhouse Training Ltd,66703
Chorley Borough Council,http://statistics.data.gov.uk/id/local-authority/30UE,Economic Development,1096,Housing,Consultants` Fees,40077,Services,5027,"PA1 Pesticide Training Course Including  NPTC registration and assessment, to be conducted on Monday 5th & Wed",24/04/2015,102773,125.00,Revenue,Millhouse Training Ltd,66703
Chorley Borough Council,http://statistics.data.gov.uk/id/local-authority/30UE,Economic Development,1096,Housing,Consultants` Fees,40077,Services,5027,PA1 Assessment,24/04/2015,102773,100.00,Revenue,Millhouse Training Ltd,66703
Chorley Borough Council,http://statistics.data.gov.uk/id/local-authority/30UE,Economic Development,1096,Housing,Consultants` Fees,40077,Services,5027,PA6A HHA Test,24/04/2015,102773,56.00,Revenue,Millhouse Training Ltd,66703
Chorley Borough Council,http://statistics.data.gov.uk/id/local-authority/30UE,Capital,Capital,Housing,Grants,3002,Capital Expenditure,Capital,ADDRESS REDACTED,22/04/2015,102647,"3,758.64",Capital,Mint Northwest Ltd,65607
Chorley Borough Council,http://statistics.data.gov.uk/id/local-authority/30UE,Central Support Services,1009,Health Environment & Neighbourhoods,Sports Development Initiatives,40186,Miscellaneous Expenses,5034,Couch to 5K T-shirts ordered ,15/04/2015,102348,500.00,Revenue,Modern Embroidery Ltd,68723
Chorley Borough Council,http://statistics.data.gov.uk/id/local-authority/30UE,Central Support Services,1009,"Customer, ICT & Transactional",Computer Software-Maintenance,40107,Communication and Computing,5028,modern.gov restricted mobile app 01/04/15 to 31/03/16,15/04/2015,102446,"1,500.00",Revenue,Modern Mindset LTD,51367
Chorley Borough Council,http://statistics.data.gov.uk/id/local-authority/30UE,Central Support Services,1009,Governance,Miscellaneous Expenses,40200,Miscellaneous Expenses,5034,Prize Money,24/04/2015,102604,280.00,Revenue,Morgan Kneisky,69883
Chorley Borough Council,http://statistics.data.gov.uk/id/local-authority/30UE,Central Support Services,1009,Governance,Miscellaneous Expenses,40200,Miscellaneous Expenses,5034,Prize money,24/04/2015,102607,280.00,Revenue,Morgan Kneisky,69883
Chorley Borough Council,http://statistics.data.gov.uk/id/local-authority/30UE,Control Accounts,Control,Shared Service Arrangement,Manual Control Account,1,Balance Sheet,Balance,REFUND,29/04/2015,CRREF40,"1,215.00",Revenue,NAME REDACTED,19968
Chorley Borough Council,http://statistics.data.gov.uk/id/local-authority/30UE,Service Management & Support,1009,Streetscene & Leisure Contracts,Supplies-Grounds Maintenance,40025,"Equipment, Furniture & Materia",5023,1 day working @ Yarrow Valley Car Park 1 day working @ Euxton Skate Park,17/04/2015,102429,400.00,Revenue,NAME REDACTED,16710
Chorley Borough Council,http://statistics.data.gov.uk/id/local-authority/30UE,Private Sector HSG Renewal,1073,Housing,Miscellaneous Expenses,40200,Miscellaneous Expenses,5034,"Provision of Energy Switching Support Service, funded by LCC Affordable Warmth initiative, during March 2015",15/04/2015,102462,"1,526.99",Revenue,NAME REDACTED,65606
Chorley Borough Council,http://statistics.data.gov.uk/id/local-authority/30UE,Service Management & Support,1009,Streetscene & Leisure Contracts,Tools & Equipment - Maintenance,40005,"Equipment, Furniture & Materia",5023,Carryout full service to include parts and cylinder grinding on Ransomes bowling green machine,08/04/2015,102149,314.22,Revenue,MW Grass Machinery,21616
Chorley Borough Council,http://statistics.data.gov.uk/id/local-authority/30UE,Service Management & Support,1009,Streetscene & Leisure Contracts,Tools & Equipment - Maintenance,40005,"Equipment, Furniture & Materia",5023,Carryout full service to include parts and cylinder grinding on Ransomes Bowling green machine,08/04/2015,102150,349.42,Revenue,MW Grass Machinery,21616
Chorley Borough Council,http://statistics.data.gov.uk/id/local-authority/30UE,Service Management & Support,1009,Streetscene & Leisure Contracts,Tools & Equipment - Maintenance,40005,"Equipment, Furniture & Materia",5023,Carryout full service to include parts and cylinder grinding on Ransomes bowling green machine,08/04/2015,102151,349.42,Revenue,MW Grass Machinery,21616
Chorley Borough Council,http://statistics.data.gov.uk/id/local-authority/30UE,Service Management & Support,1009,Streetscene & Leisure Contracts,Tools & Equipment - Maintenance,40005,"Equipment, Furniture & Materia",5023,Carryout full service to include parts and cylinder grinding on Ransomes bowling green machine,15/04/2015,102484,349.42,Revenue,MW Grass Machinery,21616
Chorley Borough Council,http://statistics.data.gov.uk/id/local-authority/30UE,Service Management & Support,1009,Streetscene & Leisure Contracts,Tools & Equipment - Maintenance,40005,"Equipment, Furniture & Materia",5023,Carryout full winter service to include various reairs and grinding on Ransomes Super Certes,15/04/2015,102487,398.42,Revenue,MW Grass Machinery,21616
Chorley Borough Council,http://statistics.data.gov.uk/id/local-authority/30UE,Service Management & Support,1009,Streetscene & Leisure Contracts,Tools & Equipment - Maintenance,40005,"Equipment, Furniture & Materia",5023,Carryout full winter service repairs and cylinder grinding on Ransome Super Certes as required,15/04/2015,102488,314.22,Revenue,MW Grass Machinery,21616
Chorley Borough Council,http://statistics.data.gov.uk/id/local-authority/30UE,Service Management & Support,1009,Streetscene & Leisure Contracts,Tools & Equipment - Maintenance,40005,"Equipment, Furniture & Materia",5023,Carryout full winter service repairs and cylinder grinding on Ransomes Super Certesas required,15/04/2015,102489,349.42,Revenue,MW Grass Machinery,21616
Chorley Borough Council,http://statistics.data.gov.uk/id/local-authority/30UE,Business Support,1095,Policy & Performance,Research & Feasibilities,40079,Services,5027,100 x MARKET WALK EXTENSION BOOKLETs,10/04/2015,102171,398.00,Revenue,N B Colour Print Ltd,17917
Chorley Borough Council,http://statistics.data.gov.uk/id/local-authority/30UE,Economic Development,1096,Economic Development,Publicity - Advertising,40157,Miscellaneous Expenses,5034,"Please supply: Quantity: 20,000 Title 6PP 1/3 A4 MARKETS LEAFLETSize: 1/3 A4Printed four colour process through",08/04/2015,102185,520.00,Revenue,N B Colour Print Ltd,17917
Chorley Borough Council,http://statistics.data.gov.uk/id/local-authority/30UE,Homelessness,1075,Housing,Rental Bond Scheme,40241,Miscellaneous Expenses,5034,rental bond scheme claim,29/04/2015,102826,380.00,Revenue,Naseem Shahid,69901
Chorley Borough Council,http://statistics.data.gov.uk/id/local-authority/30UE,Democratic Represent and  Mgnt,1007,Streetscene & Leisure Contracts,Signs:Provision & Maintenance,20065,Grounds Maintenance Costs,5013,Heritage Garden /  Back Lane Reservouir Interpretation Board.  Delivery to be confirmed ,15/04/2015,102402,"1,100.00",Revenue,Nature Sign Design,64676
Chorley Borough Council,http://statistics.data.gov.uk/id/local-authority/30UE,Democratic Represent and  Mgnt,1007,Streetscene & Leisure Contracts,Maintenance/Nature Reserves,20045,Grounds Maintenance Costs,5013,"Interpretation board for Top Lodge - draw art work and produce on the green to the core panel, to a finished size of 2000mm",10/04/2015,102405,"2,475.00",Revenue,Nature Sign Design,64676
Chorley Borough Council,http://statistics.data.gov.uk/id/local-authority/30UE,Central Support Services,1009,Health Environment & Neighbourhoods,Miscellaneous Expenses,40200,Miscellaneous Expenses,5034,"Supply 35 yard skip for clean up event Saturday 28th march 2015, Greenside Euxton ",15/04/2015,102471,396.75,Revenue,Neales Waste Management,17583
Chorley Borough Council,http://statistics.data.gov.uk/id/local-authority/30UE,Central Support Services,1009,Health Environment & Neighbourhoods,Miscellaneous Expenses,40200,Miscellaneous Expenses,5034,"Supply 35 yard skip for clean up, deliver 8.30am & collect from site 1 pm. Exchanges during event if required to Bankside ",15/04/2015,102472,367.08,Revenue,Neales Waste Management,17583
Chorley Borough Council,http://statistics.data.gov.uk/id/local-authority/30UE,Service Management & Support,1009,Streetscene & Leisure Contracts,Refuse Collection,20037,Cleaning and Domestic Supplies,5012,Exchange of 30 yard green waste skip from Bengal St depot at price quoted. (Please use this order No form 01/04/2014),22/04/2015,102473,70.00,Revenue,Neales Waste Management,17583
Chorley Borough Council,http://statistics.data.gov.uk/id/local-authority/30UE,Service Management & Support,1009,Streetscene & Leisure Contracts,Refuse Collection,20037,Cleaning and Domestic Supplies,5012,Exchange charge for Street cleaning 20 yard skip at price quoted. (Please use this order No from 01/04/2014),22/04/2015,102473,"1,256.00",Revenue,Neales Waste Management,17583
Chorley Borough Council,http://statistics.data.gov.uk/id/local-authority/30UE,Service Management & Support,1009,Streetscene & Leisure Contracts,Refuse Collection,20037,Cleaning and Domestic Supplies,5012,Weight charge for green waste from Bengal St depot at price quoted. (Please use this order from 01/04/2014 ),22/04/2015,102473,"1,711.18",Revenue,Neales Waste Management,17583
Chorley Borough Council,http://statistics.data.gov.uk/id/local-authority/30UE,Unapportionable Central OHeads,1009,Chief Executives Office,Postages,40082,Communication and Computing,5028,Credit or Franking Machine at Town Hall Offices Model IS-350 MM Serial No NE8002360 Account Number 315015,10/04/2015,102308,"1,000.00",Revenue,Neopost Ltd RCB Credifon A/C,20009
Chorley Borough Council,http://statistics.data.gov.uk/id/local-authority/30UE,Central Support Services,1009,Governance,Miscellaneous Expenses,40200,Miscellaneous Expenses,5034,Provision of 2 Neutral Service Team cars and personnel for the Chorley Grand Prix,24/04/2015,102753,350.00,Revenue,Neutral Service,69769
Chorley Borough Council,http://statistics.data.gov.uk/id/local-authority/30UE,Capital,Capital,Housing,Main Contractor,3007,Capital Expenditure,Capital,"Final 50% of grant for Practical Completion ADDRESS REDACTED, 8 x 1 bedroom flats for affordable rent.",10/04/2015,102141,"135,839.50",Capital,New Progress Housing Association Ltd,17922
Chorley Borough Council,http://statistics.data.gov.uk/id/local-authority/30UE,Capital,Capital,Streetscene & Leisure Contracts,Main Contractor,3007,Capital Expenditure,Capital,Design and Build of Astley Park Destination Play Area in accordance with signed JCT Design and Build Contracts,22/04/2015,102598,"67,438.39",Capital,Newground CIC,22064
Chorley Borough Council,http://statistics.data.gov.uk/id/local-authority/30UE,Capital,Capital,Streetscene & Leisure Contracts,Main Contractor,3007,Capital Expenditure,Capital,Design and Build of Astley Park Destination Play Area in accordance with signed JCT Design and Build Contracts,22/04/2015,102599,"71,615.01",Capital,Newground CIC,22064
Chorley Borough Council,http://statistics.data.gov.uk/id/local-authority/30UE,Housing Strategy,1069,Housing,General Subscriptions,40146,Grants and Subscriptions,5031,Northern Housing Consortium Annual Membership Subscription 2015/2016,29/04/2015,102806,885.00,Revenue,Northern Housing Consortium Ltd,17220
Chorley Borough Council,http://statistics.data.gov.uk/id/local-authority/30UE,Service Management & Support,1009,Streetscene & Leisure Contracts,Vehicle Maintenance,30045,Direct Transport Costs,5016,Supply sweeper brushes for Chorley Council as per delivery note No 12426 already supplied,15/04/2015,102433,887.33,Revenue,Northern Municipal Spares Ltd,17752
Chorley Borough Council,http://statistics.data.gov.uk/id/local-authority/30UE,Unapportionable Central OHeads,1009,"Customer, ICT & Transactional",Service Fees,40056,Services,5027,DOL Mailroom,15/04/2015,102385,"7,200.00",Revenue,Northgate Information Solutions UK Limited,18285
Chorley Borough Council,http://statistics.data.gov.uk/id/local-authority/30UE,Parking Services,1066,Transformation Management,Electricity,20013,Energy Costs,5006,Un-metered Car Park,15/04/2015,102376,1.06,Revenue,Npower Commercial Gas,16814
Chorley Borough Council,http://statistics.data.gov.uk/id/local-authority/30UE,Parking Services,1066,Transformation Management,Electricity,20013,Energy Costs,5006,Un-metered Pay & Display,15/04/2015,102376,103.99,Revenue,Npower Commercial Gas,16814
Chorley Borough Council,http://statistics.data.gov.uk/id/local-authority/30UE,Central Support Services,1009,Transformation Management,Electricity,20013,Energy Costs,5006,Un-metered CCTV Cameras,15/04/2015,102376,257.24,Revenue,Npower Commercial Gas,16814
Chorley Borough Council,http://statistics.data.gov.uk/id/local-authority/30UE,Democratic Represent and  Mgnt,1007,Transformation Management,Electricity,20013,Energy Costs,5006,Harpers Lane,24/04/2015,102524,75.04,Revenue,Npower Commercial Gas,16814
Chorley Borough Council,http://statistics.data.gov.uk/id/local-authority/30UE,Democratic Represent and  Mgnt,1007,Transformation Management,Electricity,20013,Energy Costs,5006,Tatton Recreation Grounds,24/04/2015,102524,29.53,Revenue,Npower Commercial Gas,16814
Chorley Borough Council,http://statistics.data.gov.uk/id/local-authority/30UE,Service Management & Support,1009,Transformation Management,Electricity,20013,Energy Costs,5006,Gillet Playing Fields,24/04/2015,102524,64.29,Revenue,Npower Commercial Gas,16814
Chorley Borough Council,http://statistics.data.gov.uk/id/local-authority/30UE,Democratic Represent and  Mgnt,1007,Transformation Management,Electricity,20013,Energy Costs,5006,King George V Playing Fields,24/04/2015,102524,5.89,Revenue,Npower Commercial Gas,16814
Chorley Borough Council,http://statistics.data.gov.uk/id/local-authority/30UE,Economic Development,1096,Transformation Management,Electricity,20013,Energy Costs,5006,Market Office Cleveland Street,24/04/2015,102524,"2,712.82",Revenue,Npower Commercial Gas,16814
Chorley Borough Council,http://statistics.data.gov.uk/id/local-authority/30UE,Democratic Represent and  Mgnt,1007,Transformation Management,Electricity,20013,Energy Costs,5006,Astely Hall Farm,24/04/2015,102524,197.19,Revenue,Npower Commercial Gas,16814
Chorley Borough Council,http://statistics.data.gov.uk/id/local-authority/30UE,Democratic Represent and  Mgnt,1007,Transformation Management,Electricity,20013,Energy Costs,5006,Astley Hall,24/04/2015,102524,54.34,Revenue,Npower Commercial Gas,16814
Chorley Borough Council,http://statistics.data.gov.uk/id/local-authority/30UE,Democratic Represent and  Mgnt,1007,Transformation Management,Electricity,20013,Energy Costs,5006,Eaves Green Community Centre,24/04/2015,102524,343.98,Revenue,Npower Commercial Gas,16814
Chorley Borough Council,http://statistics.data.gov.uk/id/local-authority/30UE,Community Development,1097,Transformation Management,Electricity,20013,Energy Costs,5006,35-39 Market Street,24/04/2015,102524,537.69,Revenue,Npower Commercial Gas,16814
Chorley Borough Council,http://statistics.data.gov.uk/id/local-authority/30UE,Community Development,1097,Transformation Management,Electricity,20013,Energy Costs,5006,35-39 Market Street,24/04/2015,102524,49.72,Revenue,Npower Commercial Gas,16814
Chorley Borough Council,http://statistics.data.gov.uk/id/local-authority/30UE,Community Development,1097,Transformation Management,Electricity,20013,Energy Costs,5006,35-39 Market Street,24/04/2015,102524,329.32,Revenue,Npower Commercial Gas,16814
Chorley Borough Council,http://statistics.data.gov.uk/id/local-authority/30UE,Democratic Represent and  Mgnt,1007,Transformation Management,Electricity,20013,Energy Costs,5006,Coronation Recreation Grounds,24/04/2015,102524,31.29,Revenue,Npower Commercial Gas,16814
Chorley Borough Council,http://statistics.data.gov.uk/id/local-authority/30UE,Democratic Represent and  Mgnt,1007,Transformation Management,Electricity,20013,Energy Costs,5006,Astley Village Community Cenrte,24/04/2015,102524,371.36,Revenue,Npower Commercial Gas,16814
Chorley Borough Council,http://statistics.data.gov.uk/id/local-authority/30UE,Democratic Represent and  Mgnt,1007,Transformation Management,Electricity,20013,Energy Costs,5006,Ackhurst Lodge,24/04/2015,102524,4.63,Revenue,Npower Commercial Gas,16814
Chorley Borough Council,http://statistics.data.gov.uk/id/local-authority/30UE,Democratic Represent and  Mgnt,1007,Transformation Management,Electricity,20013,Energy Costs,5006,Astley Hall Coach house,24/04/2015,102524,951.94,Revenue,Npower Commercial Gas,16814
Chorley Borough Council,http://statistics.data.gov.uk/id/local-authority/30UE,Democratic Represent and  Mgnt,1007,Transformation Management,Electricity,20013,Energy Costs,5006,Astley Hall Cottage,24/04/2015,102524,236.04,Revenue,Npower Commercial Gas,16814
Chorley Borough Council,http://statistics.data.gov.uk/id/local-authority/30UE,Corporate Management,1008,Transformation Management,Electricity,20013,Energy Costs,5006,Cemetery Chapel,24/04/2015,102524,4.62,Revenue,Npower Commercial Gas,16814
Chorley Borough Council,http://statistics.data.gov.uk/id/local-authority/30UE,Corporate Management,1008,Transformation Management,Electricity,20013,Energy Costs,5006,Cemetery Chapel,24/04/2015,102524,1.07,Revenue,Npower Commercial Gas,16814
Chorley Borough Council,http://statistics.data.gov.uk/id/local-authority/30UE,Corporate Management,1008,Transformation Management,Electricity,20013,Energy Costs,5006,Cemetery Office,24/04/2015,102524,309.36,Revenue,Npower Commercial Gas,16814
Chorley Borough Council,http://statistics.data.gov.uk/id/local-authority/30UE,Democratic Represent and  Mgnt,1007,Transformation Management,Electricity,20013,Energy Costs,5006,Astley Park Changing Rooms,24/04/2015,102524,555.63,Revenue,Npower Commercial Gas,16814
Chorley Borough Council,http://statistics.data.gov.uk/id/local-authority/30UE,Economic Development,1096,Transformation Management,Electricity,20013,Energy Costs,5006,Market Compactor,24/04/2015,102524,140.31,Revenue,Npower Commercial Gas,16814
Chorley Borough Council,http://statistics.data.gov.uk/id/local-authority/30UE,Unapportionable Central OHeads,1009,Transformation Management,Electricity,20013,Energy Costs,5006,Civic Offices,24/04/2015,102524,"3,515.65",Revenue,Npower Commercial Gas,16814
Chorley Borough Council,http://statistics.data.gov.uk/id/local-authority/30UE,Unapportionable Central OHeads,1009,Transformation Management,Electricity,20013,Energy Costs,5006,Bengal Street,24/04/2015,102524,"1,039.78",Revenue,Npower Commercial Gas,16814
Chorley Borough Council,http://statistics.data.gov.uk/id/local-authority/30UE,Unapportionable Central OHeads,1009,Transformation Management,Electricity,20013,Energy Costs,5006,Town Hall,24/04/2015,102524,"2,457.97",Revenue,Npower Commercial Gas,16814
Chorley Borough Council,http://statistics.data.gov.uk/id/local-authority/30UE,Economic Development,1096,Transformation Management,Electricity,20013,Energy Costs,5006,Portacabin,24/04/2015,102524,4.62,Revenue,Npower Commercial Gas,16814
Chorley Borough Council,http://statistics.data.gov.uk/id/local-authority/30UE,Homelessness,1075,Transformation Management,Electricity,20013,Energy Costs,5006,Cotswold House Communal Rooms,24/04/2015,102524,"1,209.27",Revenue,Npower Commercial Gas,16814
Chorley Borough Council,http://statistics.data.gov.uk/id/local-authority/30UE,Homelessness,1075,Transformation Management,Electricity,20013,Energy Costs,5006,Cotswold House Two Storey Wing,24/04/2015,102524,165.57,Revenue,Npower Commercial Gas,16814
Chorley Borough Council,http://statistics.data.gov.uk/id/local-authority/30UE,Homelessness,1075,Transformation Management,Electricity,20013,Energy Costs,5006,Cotswold House Single Storey Wing,24/04/2015,102524,119.16,Revenue,Npower Commercial Gas,16814
Chorley Borough Council,http://statistics.data.gov.uk/id/local-authority/30UE,Democratic Represent and  Mgnt,1007,Transformation Management,Electricity,20013,Energy Costs,5006,Clayton Brook Community Centre,24/04/2015,102524,251.07,Revenue,Npower Commercial Gas,16814
Chorley Borough Council,http://statistics.data.gov.uk/id/local-authority/30UE,Parking Services,1066,Streetscene & Leisure Contracts,External Contractors,50008,Private Contractors,5042,Enforcement of 50 hours per week and cash collection from off street,22/04/2015,102545,"3,805.17",Revenue,NSL Limited,67253
Chorley Borough Council,http://statistics.data.gov.uk/id/local-authority/30UE,Business Support,1095,Transformation Management,Electricity,20013,Energy Costs,5006,8 Market Walk,29/04/2015,102894,456.13,Revenue,Opus Energy Ltd,65093
Chorley Borough Council,http://statistics.data.gov.uk/id/local-authority/30UE,Unapportionable Central OHeads,1009,Policy & Performance,Exhibitions & Special Events,40158,Miscellaneous Expenses,5034,Electronic versions of the What`s Happening magazine and event programmes,17/04/2015,102586,495.00,Revenue,PageSuite Ltd,22036
Chorley Borough Council,http://statistics.data.gov.uk/id/local-authority/30UE,Parking Services,1066,Streetscene & Leisure Contracts,External Contractors,50008,Private Contractors,5042,Est Quarterly charges for PCNs issued in 2015 / 2016. 3500 PCNs per annum @60p each. Quarter 1 April -June 2015,29/04/2015,102834,375.50,Revenue,PATROL,21859
Chorley Borough Council,http://statistics.data.gov.uk/id/local-authority/30UE,Democratic Represent and  Mgnt,1007,Governance,Performing Rights Society Fees,40148,Grants and Subscriptions,5031,Lancastrian charges for 06.10.14 to 05.01.15.,15/04/2015,102503,446.15,Revenue,Performing Right Society Ltd,19909
Chorley Borough Council,http://statistics.data.gov.uk/id/local-authority/30UE,Corporate Management,1008,Chief Executives Office,Consultants` Fees,40077,Services,5027,Services provided for Commission,10/04/2015,102311,"3,000.00",Revenue,Peter Colclough,69641
Chorley Borough Council,http://statistics.data.gov.uk/id/local-authority/30UE,Central Support Services,1009,Health Environment & Neighbourhoods,External Contractor,40198,Miscellaneous Expenses,5034,Pest control services from April 1st 2015 up to and inclusive March 31st 2016,17/04/2015,102496,323.83,Revenue,Peter L Johnson,16727
Chorley Borough Council,http://statistics.data.gov.uk/id/local-authority/30UE,Central Support Services,1009,Health Environment & Neighbourhoods,External Contractor,40198,Miscellaneous Expenses,5034,Pest control services from April 1st 2015 up to and inclusive March 31st 2016,22/04/2015,102681,323.83,Revenue,Peter L Johnson,16727
Chorley Borough Council,http://statistics.data.gov.uk/id/local-authority/30UE,Service Management & Support,1009,Streetscene & Leisure Contracts,Diesel/Derv,30007,Direct Transport Costs,5016,Supply 2000litres of road diesel delivered to Bengal St depot as soon as possible,29/04/2015,102654,"2,100.00",Revenue,Pilkington Oils,18075
Chorley Borough Council,http://statistics.data.gov.uk/id/local-authority/30UE,Central Support Services,1009,Health Environment & Neighbourhoods,Tools & Equipment - Purchase,40003,"Equipment, Furniture & Materia",5023,2 body cameras plus harnesses,08/04/2015,102152,"1,037.00",Revenue,Pinnacle Response Ltd,69639
Chorley Borough Council,http://statistics.data.gov.uk/id/local-authority/30UE,Central Support Services,1009,Health Environment & Neighbourhoods,Miscellaneous Expenses,40200,Miscellaneous Expenses,5034,Grant funding for the Aspire Plus project,15/04/2015,102310,"6,652.80",Revenue,Places for People,22254
Chorley Borough Council,http://statistics.data.gov.uk/id/local-authority/30UE,Unapportionable Central OHeads,1009,Governance,Furniture - Purchase,40012,"Equipment, Furniture & Materia",5023,KEY32C - Key Full Back Stacking Cantilever Chair - chrome frame. Upholstered in Torro Faux Leather - black,15/04/2015,102443,"6,624.00",Revenue,Planscape Business Interiors Ltd,69451
Chorley Borough Council,http://statistics.data.gov.uk/id/local-authority/30UE,Unapportionable Central OHeads,1009,Governance,Furniture - Purchase,40012,"Equipment, Furniture & Materia",5023,KTR25-CH-CO - Kite 1500w x 750d Rectangular Table/Chrome Legs/C Oak,15/04/2015,102443,"2,817.60",Revenue,Planscape Business Interiors Ltd,69451
Chorley Borough Council,http://statistics.data.gov.uk/id/local-authority/30UE,Unapportionable Central OHeads,1009,Governance,Furniture - Purchase,40012,"Equipment, Furniture & Materia",5023,KTS25-CH-CO - Kite 750w x 750d Square table/Chrome Legs/Calais Oak,15/04/2015,102443,642.00,Revenue,Planscape Business Interiors Ltd,69451
Chorley Borough Council,http://statistics.data.gov.uk/id/local-authority/30UE,Unapportionable Central OHeads,1009,Governance,Furniture - Purchase,40012,"Equipment, Furniture & Materia",5023,KTK25-CH-CO - Kite 750w x 750d Kite Table/Chrome Legs/Calais Oak,15/04/2015,102443,"3,072.00",Revenue,Planscape Business Interiors Ltd,69451
Chorley Borough Council,http://statistics.data.gov.uk/id/local-authority/30UE,Unapportionable Central OHeads,1009,Governance,Furniture - Purchase,40012,"Equipment, Furniture & Materia",5023,KTCR2-CO - 1000w x 500d 2-Door Credenza inc Shelf - Calais Oak,15/04/2015,102443,595.20,Revenue,Planscape Business Interiors Ltd,69451
Chorley Borough Council,http://statistics.data.gov.uk/id/local-authority/30UE,Unapportionable Central OHeads,1009,Governance,Furniture - Purchase,40012,"Equipment, Furniture & Materia",5023,KTCR3-CO - 1500w x 500d 3-Door Credenza inc Shelf - Calais Oak,15/04/2015,102443,397.20,Revenue,Planscape Business Interiors Ltd,69451
Chorley Borough Council,http://statistics.data.gov.uk/id/local-authority/30UE,Corporate Management,1008,Shared Service Arrangement,Scheme Administration Costs,40214,Miscellaneous Expenses,5034,CBC Contribution to LRF administration 2015/16,10/04/2015,102331,914.91,Revenue,Police & Crime Commissioner,17548
Chorley Borough Council,http://statistics.data.gov.uk/id/local-authority/30UE,Precepts and Collection Fund,Precepts,Shared Service Arrangement,LPA Precept,2010,Precepts & Collection Fund,Precept,precept,29/04/2015,102899,"559,644.00",Revenue,Police & Crime Commissioner,17438
Chorley Borough Council,http://statistics.data.gov.uk/id/local-authority/30UE,Unapportionable Central OHeads,1009,Policy & Performance,Exhibitions & Special Events,40158,Miscellaneous Expenses,5034,What�s Your Story Chorley pull up banners,22/04/2015,102653,325.00,Revenue,Poppy Signs Ltd,21898
Chorley Borough Council,http://statistics.data.gov.uk/id/local-authority/30UE,Central Support Services,1009,Governance,Miscellaneous Expenses,40200,Miscellaneous Expenses,5034,"5 T6 Portable Toilets Hire for Saturday 4 April 2015 To be delivered and collected from Queen`s Road Car Park, Chorley",17/04/2015,102519,300.00,Revenue,Portable Conveniences Ltd,17556
Chorley Borough Council,http://statistics.data.gov.uk/id/local-authority/30UE,Unapportionable Central OHeads,1009,Health Environment & Neighbourhoods,Photocopier Consumables,40049,"Printing, Stationery & General",5026,"Evolution Everyday A4 80gsm, Box 2500",10/04/2015,102328,454.00,Revenue,Premier Paper Group,54451
Chorley Borough Council,http://statistics.data.gov.uk/id/local-authority/30UE,Unapportionable Central OHeads,1009,Chief Executives Office,Photocopier Consumables,40049,"Printing, Stationery & General",5026,"Evolution Everyday A4 80gsm, Box 2500",24/04/2015,102515,454.00,Revenue,Premier Paper Group,54451
Chorley Borough Council,http://statistics.data.gov.uk/id/local-authority/30UE,Unapportionable Central OHeads,1009,Chief Executives Office,Photocopier Consumables,40049,"Printing, Stationery & General",5026,White Card A4 250gsm,24/04/2015,102515,89.92,Revenue,Premier Paper Group,54451
Chorley Borough Council,http://statistics.data.gov.uk/id/local-authority/30UE,Parking Services,1066,Streetscene & Leisure Contracts,External Contractors,50008,Private Contractors,5042,NNRD split from 1 April to 5 Oct 2014 of building for Legion parking contractor NO VAT,29/04/2015,102798,339.64,Revenue,Preston City Council,22601
Chorley Borough Council,http://statistics.data.gov.uk/id/local-authority/30UE,Parking Services,1066,Streetscene & Leisure Contracts,External Contractors,50008,Private Contractors,5042,Building rental from 6 Sept to 5 Oct 2014 for Legion parking contractor 108.50 plus VAT,29/04/2015,102798,108.50,Revenue,Preston City Council,22601
Chorley Borough Council,http://statistics.data.gov.uk/id/local-authority/30UE,Elections,1012,Governance,Postages,40082,Communication and Computing,5028,chorley poll card postage,29/04/2015,102782,"1,863.37",Revenue,Print Image Facilities LLP,57870
Chorley Borough Council,http://statistics.data.gov.uk/id/local-authority/30UE,Elections,1012,Governance,Printing,40043,"Printing, Stationery & General",5026,PI refresh postal votes,29/04/2015,102779,"1,857.75",Revenue,Print Image Network,21171
Chorley Borough Council,http://statistics.data.gov.uk/id/local-authority/30UE,Service Management & Support,1009,Streetscene & Leisure Contracts,Supplies-Grounds Maintenance,40025,"Equipment, Furniture & Materia",5023,700 square metres of amenity turf to be collected as discussed,15/04/2015,102465,324.00,Revenue,R H F Turf,17990
Chorley Borough Council,http://statistics.data.gov.uk/id/local-authority/30UE,Service Management & Support,1009,Streetscene & Leisure Contracts,Supplies-Grounds Maintenance,40025,"Equipment, Furniture & Materia",5023,700 square metres of amenity turf to be collected as discussed,15/04/2015,102466,310.50,Revenue,R H F Turf,17990
Chorley Borough Council,http://statistics.data.gov.uk/id/local-authority/30UE,Capital,Capital,Policy & Performance,Consultants Fees,3025,Capital Expenditure,Capital,To undertake a feasibility study for the proposed facility in East Chorley,10/04/2015,102225,"11,108.33",Capital,Red Rose Corporate Services LLP,67869
Chorley Borough Council,http://statistics.data.gov.uk/id/local-authority/30UE,Capital,Capital,Streetscene & Leisure Contracts,Consultants Fees,3025,Capital Expenditure,Capital,Astley Park Events Car Parking Feasibility study (in accordance with fee quotation prepared ,17/04/2015,102428,"6,500.00",Capital,Reid Jones Partnership Ltd,68567
Chorley Borough Council,http://statistics.data.gov.uk/id/local-authority/30UE,Control Accounts,Control,HR & Org. Development,General Balances,100,Balance Sheet,Balance,Childcare Vouchers,29/04/2015,102291,"5,211.61",Revenue,Reward Gateway (UK) Ltd,66814
Chorley Borough Council,http://statistics.data.gov.uk/id/local-authority/30UE,Business Support,1095,Policy & Performance,Research & Feasibilities,40079,Services,5027,Cost manager services,15/04/2015,102206,"7,250.00",Revenue,Rider Levett Bucknall,67527
Chorley Borough Council,http://statistics.data.gov.uk/id/local-authority/30UE,Business Support,1095,Policy & Performance,Research & Feasibilities,40079,Services,5027,Project management and planning consultancy services as part of the Market Walk Extension project,15/04/2015,102206,"6,000.00",Revenue,Rider Levett Bucknall,67527
Chorley Borough Council,http://statistics.data.gov.uk/id/local-authority/30UE,Service Management & Support,1009,Streetscene & Leisure Contracts,Supplies-Grounds Maintenance,40025,"Equipment, Furniture & Materia",5023,5 ltr Trustee Amenity Glyphosate,17/04/2015,102513,"1,060.00",Revenue,Rigby Taylor Ltd,16299
Chorley Borough Council,http://statistics.data.gov.uk/id/local-authority/30UE,Payments of Precepts to Parish,1018,"Customer, ICT & Transactional",Parish Council Tax,4500,Revenue Account Transfers,Balance,Precepts,17/04/2015,102558,"2,331.00",Revenue,Rivington Parish Council,16209
Chorley Borough Council,http://statistics.data.gov.uk/id/local-authority/30UE,Corporate Management,1008,"Customer, ICT & Transactional",Contributions Parish Councils,40144,Grants and Subscriptions,5031,Precepts,17/04/2015,102558,169.00,Revenue,Rivington Parish Council,16209
Chorley Borough Council,http://statistics.data.gov.uk/id/local-authority/30UE,Central Support Services,1009,"Customer, ICT & Transactional",Computer Software-Maintenance,40107,Communication and Computing,5028,"Software &#61656; Adobe Reader Extension Server ALL ALP Platinum Maintenance & Support Renewal",08/04/2015,102199,"2,949.00",Revenue,ROCC Computers Ltd,20307
Chorley Borough Council,http://statistics.data.gov.uk/id/local-authority/30UE,Elections,1012,Governance,Postages,40082,Communication and Computing,5028,Business Reply service - RRHA-KZCR-CAXA April 2014 - March 2015,08/04/2015,102242,418.64,Revenue,Royal Mail Group Plc,17522
Chorley Borough Council,http://statistics.data.gov.uk/id/local-authority/30UE,Central Support Services,1009,Streetscene & Leisure Contracts,Miscellaneous Expenses,40200,Miscellaneous Expenses,5034,"Samba band performance for: Chorley Grand Prix 4th April 2015 Samba Band Samba Band & Dancer(s)		",24/04/2015,102708,550.00,Revenue,Sambafriq,21441
Chorley Borough Council,http://statistics.data.gov.uk/id/local-authority/30UE,Economic Development,1096,Economic Development,Grants To Other Organisations,40127,Grants and Subscriptions,5031,Starting in Business grant,10/04/2015,102375,250.00,Revenue,NAME REDACTED,69736
Chorley Borough Council,http://statistics.data.gov.uk/id/local-authority/30UE,Homelessness,1075,Housing,External Contractor,40198,Miscellaneous Expenses,5034,"Concierge Service at Cotswold Supported Housing, Cotswold Road, Chorley, Lancashire, PR7 3HW. This is for the period",10/04/2015,102215,"2,101.48",Revenue,Sector Security Services,19269
Chorley Borough Council,http://statistics.data.gov.uk/id/local-authority/30UE,Homelessness,1075,Housing,External Contractor,40198,Miscellaneous Expenses,5034,"Concierge Service at Cotswold Supported Housing, Cotswold Road, Chorley, Lancashire, PR7 3HW. This is for the period",29/04/2015,102597,"2,113.76",Revenue,Sector Security Services,19269
Chorley Borough Council,http://statistics.data.gov.uk/id/local-authority/30UE,Service Management & Support,1009,Streetscene & Leisure Contracts,Tools & Equipment - Purchase,40003,"Equipment, Furniture & Materia",5023,Supply of E5000 Pramac generator at price quoted by Martin Flyn to be delivered to Bengal St depot,29/04/2015,102623,550.00,Revenue,Seddons (Plant and Engineers) ltd,47834
Chorley Borough Council,http://statistics.data.gov.uk/id/local-authority/30UE,Service Management & Support,1009,Streetscene & Leisure Contracts,Supplies-Grounds Maintenance,40025,"Equipment, Furniture & Materia",5023,Supply of 2 stroke one shot cartridges to be delivered to Bengal St depot at price quoted,29/04/2015,102623,500.00,Revenue,Seddons (Plant and Engineers) ltd,47834
Chorley Borough Council,http://statistics.data.gov.uk/id/local-authority/30UE,Central Support Services,1009,Health Environment & Neighbourhoods,Exhibitions & Special Events,40158,Miscellaneous Expenses,5034,Bike Registration Marking Kits,24/04/2015,102748,540.00,Revenue,Selectamark plc,69857
Chorley Borough Council,http://statistics.data.gov.uk/id/local-authority/30UE,Economic Development,1096,Economic Development,Miscellaneous Expenses,40200,Miscellaneous Expenses,5034,Exhibition Space Lancashire Expo,24/04/2015,102777,300.00,Revenue,Shout Network Limited,69551
Chorley Borough Council,http://statistics.data.gov.uk/id/local-authority/30UE,Economic Development,1096,Economic Development,Miscellaneous Expenses,40200,Miscellaneous Expenses,5034,Annual membership shout Network (12 months) upgrade LBE2015,29/04/2015,102788,45.00,Revenue,Shout Network Limited,69551
Chorley Borough Council,http://statistics.data.gov.uk/id/local-authority/30UE,Economic Development,1096,Economic Development,Miscellaneous Expenses,40200,Miscellaneous Expenses,5034,Monthly Subs,29/04/2015,102788,150.00,Revenue,Shout Network Limited,69551
Chorley Borough Council,http://statistics.data.gov.uk/id/local-authority/30UE,Economic Development,1096,Economic Development,Miscellaneous Expenses,40200,Miscellaneous Expenses,5034,Expo Stand,29/04/2015,102788,100.00,Revenue,Shout Network Limited,69551
Chorley Borough Council,http://statistics.data.gov.uk/id/local-authority/30UE,Service Management & Support,1009,Streetscene & Leisure Contracts,External Contractor,40198,Miscellaneous Expenses,5034,Supply and fit electric shutter to window in Bengal St office as requested,29/04/2015,102678,440.00,Revenue,Shutter Door services Ltd,65302
Chorley Borough Council,http://statistics.data.gov.uk/id/local-authority/30UE,Service Management & Support,1009,Streetscene & Leisure Contracts,External Contractor,40198,Miscellaneous Expenses,5034,Convert manual door to electric door as requested at Bengal St depot,29/04/2015,102678,220.00,Revenue,Shutter Door services Ltd,65302
Chorley Borough Council,http://statistics.data.gov.uk/id/local-authority/30UE,Service Management & Support,1009,Streetscene & Leisure Contracts,External Contractor,40198,Miscellaneous Expenses,5034,Repairs to workshop doors as requested,29/04/2015,102678,260.00,Revenue,Shutter Door services Ltd,65302
Chorley Borough Council,http://statistics.data.gov.uk/id/local-authority/30UE,Central Support Services,1009,Health Environment & Neighbourhoods,Miscellaneous Expenses,40200,Miscellaneous Expenses,5034,To provide boom bikes as quoted for Chorley Grand Prix Saturday 4th April for Chorley Grand Prix community activity this,17/04/2015,102504,590.00,Revenue,Sound Intervention Ltd,65504
Chorley Borough Council,http://statistics.data.gov.uk/id/local-authority/30UE,Capital,Capital,Transformation Management,Main Contractor,3007,Capital Expenditure,Capital,Work carried out at 100 Market Street.,22/04/2015,102590,"12,458.62",Capital,Speakman Contractors Ltd,54838
Chorley Borough Council,http://statistics.data.gov.uk/id/local-authority/30UE,Democratic Represent and  Mgnt,1007,Governance,Processional Routes,40177,Miscellaneous Expenses,5034,"Provision of a stage, hand rails, delivery and return of stage, pedestrian barrier, sound system, delivery and return of barrier",29/04/2015,102833,717.50,Revenue,Star Drive Music,16840
Chorley Borough Council,http://statistics.data.gov.uk/id/local-authority/30UE,Central Support Services,1009,Governance,Miscellaneous Expenses,40200,Miscellaneous Expenses,5034,Prize Money,24/04/2015,102701,400.00,Revenue,NAME REDACTED,69759
Chorley Borough Council,http://statistics.data.gov.uk/id/local-authority/30UE,Central Support Services,1009,Governance,Miscellaneous Expenses,40200,Miscellaneous Expenses,5034,Prize money,24/04/2015,102605,435.00,Revenue,NAME REDACTED,69884
Chorley Borough Council,http://statistics.data.gov.uk/id/local-authority/30UE,Central Support Services,1009,Governance,Miscellaneous Expenses,40200,Miscellaneous Expenses,5034,Prize money,24/04/2015,102606,435.00,Revenue,NAME REDACTED,69884
Chorley Borough Council,http://statistics.data.gov.uk/id/local-authority/30UE,Capital,Capital,Streetscene & Leisure Contracts,Equipment,3014,Capital Expenditure,Capital,Kerbside Box 55L Ergo Green Chorley CHOR01004- Existing white print on one long side quotation number : 0000001287,15/04/2015,102220,"4,970.70",Capital,Straight Plc,17633
Chorley Borough Council,http://statistics.data.gov.uk/id/local-authority/30UE,Unapportionable Central OHeads,1009,Transformation Management,General Repairs - Reactive,20004,Repairs Maintenance & Alts,5005,REACTIVE blanket order for 2015.,10/04/2015,102268,300.00,Revenue,Stringfellow Bldg Cntrctrs Ltd,17893
Chorley Borough Council,http://statistics.data.gov.uk/id/local-authority/30UE,Unapportionable Central OHeads,1009,Transformation Management,General Repairs - Reactive,20004,Repairs Maintenance & Alts,5005,REACTIVE blanket order for 2015.,24/04/2015,102717,301.60,Revenue,Stringfellow Bldg Cntrctrs Ltd,17893
Chorley Borough Council,http://statistics.data.gov.uk/id/local-authority/30UE,Central Support Services,1009,Health Environment & Neighbourhoods,Works In Default,40199,Miscellaneous Expenses,5034,"In regards to the Swan With Two Necks, Hollinshead Street, Chorley, use a suitable, permanent, physical means securing ",29/04/2015,102809,425.00,Revenue,Stringfellow Bldg Cntrctrs Ltd,17893
Chorley Borough Council,http://statistics.data.gov.uk/id/local-authority/30UE,Unapportionable Central OHeads,1009,Governance,Mayors Medals,40029,"Equipment, Furniture & Materia",5023,Photography and printing for the Mayor`s portrait (Councillor Marion Lowe) at Astley Hall.,22/04/2015,102591,350.00,Revenue,Studio Twelve,17895
Chorley Borough Council,http://statistics.data.gov.uk/id/local-authority/30UE,Capital,Capital,Streetscene & Leisure Contracts,Consultants Fees,3025,Capital Expenditure,Capital,Ground Investigation / trial holes associated with Astley Park Events Car Parking in accordance with quotation E1011,15/04/2015,102214,"1,270.00",Capital,Sub Surface North West Limited,55367
Chorley Borough Council,http://statistics.data.gov.uk/id/local-authority/30UE,Economic Development,1096,Economic Development,Publicity - Advertising,40157,Miscellaneous Expenses,5034,supply A Craft Workshop on Tuesday 7th April 2015.A spring themed �clean� craft activities (no messy glue or paint),10/04/2015,102336,375.00,Revenue,Sunshine Events,22127
Chorley Borough Council,http://statistics.data.gov.uk/id/local-authority/30UE,Control Accounts,Control,Shared Service Arrangement,Manual Control Account,1,Balance Sheet,Balance,refund duplicate,10/04/2015,CRREF38,"1,964.00",Revenue,Sweet & Maxwell Limited,17932
Chorley Borough Council,http://statistics.data.gov.uk/id/local-authority/30UE,Democratic Represent and  Mgnt,1007,Governance,Tools & Equipment - Purchase,40003,"Equipment, Furniture & Materia",5023,Supply of two Lapel microphones for the Lancastrian Suite,29/04/2015,102746,350.00,Revenue,T G Baker (sound) LTD,22364
Chorley Borough Council,http://statistics.data.gov.uk/id/local-authority/30UE,Economic Development,1096,Economic Development,Publicity - Advertising,40157,Miscellaneous Expenses,5034,for the distribution of the markets leaflets to TICs as per email,22/04/2015,102676,294.00,Revenue,Take One Media,21807
Chorley Borough Council,http://statistics.data.gov.uk/id/local-authority/30UE,Central Support Services,1009,Health Environment & Neighbourhoods,Training Course Fees,17010,Indirect Employee Expenses,5002,Delegates fee for CCTV Conference,15/04/2015,102309,359.00,Revenue,The CCTV User Group,68077
Chorley Borough Council,http://statistics.data.gov.uk/id/local-authority/30UE,Business Support,1095,Policy & Performance,Research & Feasibilities,40079,Services,5027,To undertake tree survey in accordance with the quotation,24/04/2015,102738,790.00,Revenue,The Environmental Partnership,69544
Chorley Borough Council,http://statistics.data.gov.uk/id/local-authority/30UE,Central Support Services,1009,Policy & Performance,Miscellaneous Expenses,40200,Miscellaneous Expenses,5034,2000 x 4-page Chorley Grand Prix event leaflets,10/04/2015,102140,324.60,Revenue,The Print Quarter,17987
Chorley Borough Council,http://statistics.data.gov.uk/id/local-authority/30UE,Service Management & Support,1009,Streetscene & Leisure Contracts,Tools & Equipment - Purchase,40003,"Equipment, Furniture & Materia",5023,50 copies of safe working procedures version 1 as per quotation including NCR form.,15/04/2015,102167,324.50,Revenue,The Print Quarter,17987
Chorley Borough Council,http://statistics.data.gov.uk/id/local-authority/30UE,Central Support Services,1009,Health Environment & Neighbourhoods,Community Develop Initiatives,40185,Miscellaneous Expenses,5034,Supply 10 x banners 2300 mm x 800 mm art work provided ,08/04/2015,102187,525.00,Revenue,The Print Quarter,17987
Chorley Borough Council,http://statistics.data.gov.uk/id/local-authority/30UE,Democratic Represent and  Mgnt,1007,Streetscene & Leisure Contracts,Exhibitions & Special Events,40158,Miscellaneous Expenses,5034,Astley Alive - scheduled for Wednesday 1st April - cancelled.Payment for half day retainer for the actors for the rehearsals.,24/04/2015,102762,320.00,Revenue,Theatre by Numbers,69758
Chorley Borough Council,http://statistics.data.gov.uk/id/local-authority/30UE,Democratic Represent and  Mgnt,1007,Streetscene & Leisure Contracts,Other Fees,40212,Miscellaneous Expenses,5034,"Installation of Playdale play equipment at Stansted Road Play Area, Chorley and post installation Rpii inspection",08/04/2015,102218,"1,800.00",Revenue,Thompson Groundworks of Yorkshire,68711
Chorley Borough Council,http://statistics.data.gov.uk/id/local-authority/30UE,Democratic Represent and  Mgnt,1007,Streetscene & Leisure Contracts,Other Fees,40212,Miscellaneous Expenses,5034,Materials,08/04/2015,102218,"1,200.00",Revenue,Thompson Groundworks of Yorkshire,68711
Chorley Borough Council,http://statistics.data.gov.uk/id/local-authority/30UE,Democratic Represent and  Mgnt,1007,Streetscene & Leisure Contracts,Other Fees,40212,Miscellaneous Expenses,5034,Return to Stansted,10/04/2015,102219,750.00,Revenue,Thompson Groundworks of Yorkshire,68711
Chorley Borough Council,http://statistics.data.gov.uk/id/local-authority/30UE,Central Support Services,1009,Governance,Miscellaneous Expenses,40200,Miscellaneous Expenses,5034,"Chorley Grand Prix Order 150 lunch bags at 3.25 each (487.50) Croissants at 1.00 each (40.00) Sandwiches Cater 40 ",24/04/2015,102719,635.50,Revenue,Tootells Deli,67261
Chorley Borough Council,http://statistics.data.gov.uk/id/local-authority/30UE,Service Management & Support,1009,Streetscene & Leisure Contracts,Grounds Maintenance Contractor,20043,Grounds Maintenance Costs,5013,Works completed @ Copper Works Way,24/04/2015,102711,"1,900.00",Revenue,Treescape North West Ltd,17688
Chorley Borough Council,http://statistics.data.gov.uk/id/local-authority/30UE,Central Support Services,1009,Streetscene & Leisure Contracts,Petrol,30005,Direct Transport Costs,5016,GUARD CARD,29/04/2015,102261,45.50,Revenue,Uk Fuels Ltd,57996
Chorley Borough Council,http://statistics.data.gov.uk/id/local-authority/30UE,Service Management & Support,1009,Streetscene & Leisure Contracts,Petrol,30005,Direct Transport Costs,5016,STREET SCENE CARS,29/04/2015,102261,534.26,Revenue,Uk Fuels Ltd,57996
Chorley Borough Council,http://statistics.data.gov.uk/id/local-authority/30UE,Democratic Represent and  Mgnt,1007,Streetscene & Leisure Contracts,Use Of Transport - Mayoral Car,30015,Transport Recharges,5017,MAYOR CAR,29/04/2015,102261,53.59,Revenue,Uk Fuels Ltd,57996
Chorley Borough Council,http://statistics.data.gov.uk/id/local-authority/30UE,Unapportionable Central OHeads,1009,HR & Org. Development,Miscellaneous Expenses,40200,Miscellaneous Expenses,5034,01-May,29/04/2015,102771,"1,433.23",Revenue,UK Healthcare (BDHSC),17241
Chorley Borough Council,http://statistics.data.gov.uk/id/local-authority/30UE,Control Accounts,Control,HR & Org. Development,General Balances,100,Balance Sheet,Balance,top ups,29/04/2015,102771,506.33,Revenue,UK Healthcare (BDHSC),17241
Chorley Borough Council,http://statistics.data.gov.uk/id/local-authority/30UE,Control Accounts,Control,HR & Org. Development,General Balances,100,Balance Sheet,Balance,credit for top ups,29/04/2015,102771,-28.00,Revenue,UK Healthcare (BDHSC),17241
Chorley Borough Council,http://statistics.data.gov.uk/id/local-authority/30UE,Unapportionable Central OHeads,1009,"Customer, ICT & Transactional",Postages,40082,Communication and Computing,5028,Imail Eco Business mono Letters - Hybrid,15/04/2015,102241,789.86,Revenue,UKMAIL Ltd (Mail),57758
Chorley Borough Council,http://statistics.data.gov.uk/id/local-authority/30UE,Unapportionable Central OHeads,1009,"Customer, ICT & Transactional",Postages,40082,Communication and Computing,5028,Imail Eco Business mono Letters - Hybrid,22/04/2015,102582,487.10,Revenue,UKMAIL Ltd (Mail),57758
Chorley Borough Council,http://statistics.data.gov.uk/id/local-authority/30UE,Unapportionable Central OHeads,1009,"Customer, ICT & Transactional",Postages,40082,Communication and Computing,5028,Imail Eco Business mono Letters - Hybrid,22/04/2015,102583,445.11,Revenue,UKMAIL Ltd (Mail),57758
Chorley Borough Council,http://statistics.data.gov.uk/id/local-authority/30UE,Unapportionable Central OHeads,1009,"Customer, ICT & Transactional",Postages,40082,Communication and Computing,5028,Imail Eco Business mono Letters - Hybrid,22/04/2015,102584,732.57,Revenue,UKMAIL Ltd (Mail),57758
Chorley Borough Council,http://statistics.data.gov.uk/id/local-authority/30UE,Unapportionable Central OHeads,1009,"Customer, ICT & Transactional",Postages,40082,Communication and Computing,5028,Imail Eco Business mono Letters - Hybrid,29/04/2015,102778,607.68,Revenue,UKMAIL Ltd (Mail),57758
Chorley Borough Council,http://statistics.data.gov.uk/id/local-authority/30UE,Payments of Precepts to Parish,1018,"Customer, ICT & Transactional",Parish Council Tax,4500,Revenue Account Transfers,Balance,Precepts,17/04/2015,102557,"5,815.00",Revenue,Ulnes Walton Parish Council,16210
Chorley Borough Council,http://statistics.data.gov.uk/id/local-authority/30UE,Corporate Management,1008,"Customer, ICT & Transactional",Contributions Parish Councils,40144,Grants and Subscriptions,5031,Precepts,17/04/2015,102557,205.00,Revenue,Ulnes Walton Parish Council,16210
Chorley Borough Council,http://statistics.data.gov.uk/id/local-authority/30UE,Control Accounts,Control,Shared Service Arrangement,General Balances,100,Balance Sheet,Balance,UNIFY APRIL,17/04/2015,102575,"1,258.46",Revenue,Unify Credit Union Ltd,55509
Chorley Borough Council,http://statistics.data.gov.uk/id/local-authority/30UE,Parking Services,1066,Transformation Management,Water - Unmetered Supply,20023,Water Services,5009,Car Park Fleet St,15/04/2015,102271,339.55,Revenue,United Utilities Water Plc,17926
Chorley Borough Council,http://statistics.data.gov.uk/id/local-authority/30UE,Democratic Represent and  Mgnt,1007,Transformation Management,Water - Metered Supplies,20022,Water Services,5009,Astley Coach House,22/04/2015,102277,696.88,Revenue,United Utilities Water Plc,17926
Chorley Borough Council,http://statistics.data.gov.uk/id/local-authority/30UE,Unapportionable Central OHeads,1009,Transformation Management,Water - Metered Supplies,20022,Water Services,5009,"Destructor, Stump Lane",24/04/2015,102278,"1,033.78",Revenue,United Utilities Water Plc,17926
Chorley Borough Council,http://statistics.data.gov.uk/id/local-authority/30UE,Homelessness,1075,Transformation Management,Water - Metered Supplies,20022,Water Services,5009,Cotswold House,24/04/2015,102279,"1,086.36",Revenue,United Utilities Water Plc,17926
Chorley Borough Council,http://statistics.data.gov.uk/id/local-authority/30UE,Democratic Represent and  Mgnt,1007,Transformation Management,Water - Metered Supplies,20022,Water Services,5009,Tatton Rec Grounds,15/04/2015,102301,"1,544.75",Revenue,United Utilities Water Plc,17926
Chorley Borough Council,http://statistics.data.gov.uk/id/local-authority/30UE,Democratic Represent and  Mgnt,1007,Transformation Management,Water - Metered Supplies,20022,Water Services,5009,Rec Grounds Devonshire,15/04/2015,102303,306.35,Revenue,United Utilities Water Plc,17926
Chorley Borough Council,http://statistics.data.gov.uk/id/local-authority/30UE,Democratic Represent and  Mgnt,1007,Transformation Management,Water - Metered Supplies,20022,Water Services,5009,Astley Park Village Centre,24/04/2015,102621,479.53,Revenue,United Utilities Water Plc,17926
Chorley Borough Council,http://statistics.data.gov.uk/id/local-authority/30UE,Development Control,1091,Planning,Professional Fees,40063,Services,5027,Planning Officer Support to be provided  from 26 January 2015 @ 125 per application returned,24/04/2015,102497,"1,317.00",Revenue,Urban Vision Partnership Ltd,21181
Chorley Borough Council,http://statistics.data.gov.uk/id/local-authority/30UE,Unapportionable Central OHeads,1009,Governance,Mayors Medals,40029,"Equipment, Furniture & Materia",5023,"Past Mayor and Mayoress Medals - hallmarked silver gilt and hand painted jewels as supplied including red ribbons, cases ",08/04/2015,102224,"1,034.88",Revenue,Vaughtons,18001
Chorley Borough Council,http://statistics.data.gov.uk/id/local-authority/30UE,Corporate Management,1008,Streetscene & Leisure Contracts,Unitary Payment(S),50009,Private Contractors,5042,Provision of household waste and recycling collection service and ancillary services for 2014/15,15/04/2015,102499,"270,663.75",Revenue,Veolia ES (UK) Ltd,20748
Chorley Borough Council,http://statistics.data.gov.uk/id/local-authority/30UE,Economic Development,1096,Economic Development,Grants To Other Organisations,40127,Grants and Subscriptions,5031,Shop floor improvement grant,29/04/2015,102879,"5,000.00",Revenue,Victoria Garside,65501
Chorley Borough Council,http://statistics.data.gov.uk/id/local-authority/30UE,Central Support Services,1009,"Customer, ICT & Transactional",Computer Equipment - Security,40106,Communication and Computing,5028,Quarterly Service Charges,10/04/2015,102383,"6,981.65",Revenue,Vodafone Ltd,60180
Chorley Borough Council,http://statistics.data.gov.uk/id/local-authority/30UE,Central Support Services,1009,"Customer, ICT & Transactional",Computer Software-Purchase,40100,Communication and Computing,5028,"Annual Desktop Subscription + Basic Support - 1 seat - commercial - SLM, ELD - Win (part code IOT510860 )",29/04/2015,102744,825.68,Revenue,Vohkus Limited,67630
Chorley Borough Council,http://statistics.data.gov.uk/id/local-authority/30UE,Payments of Precepts to Parish,1018,"Customer, ICT & Transactional",Parish Council Tax,4500,Revenue Account Transfers,Balance,Precepts,17/04/2015,102556,"12,155.00",Revenue,Wheelton Parish Council,16189
Chorley Borough Council,http://statistics.data.gov.uk/id/local-authority/30UE,Corporate Management,1008,"Customer, ICT & Transactional",Contributions Parish Councils,40144,Grants and Subscriptions,5031,Precepts,17/04/2015,102556,432.00,Revenue,Wheelton Parish Council,16189
Chorley Borough Council,http://statistics.data.gov.uk/id/local-authority/30UE,Central Support Services,1009,Health Environment & Neighbourhoods,Community Develop Initiatives,40185,Miscellaneous Expenses,5034,"Supply 3 x noticeboards as per email quote, black finish to hold 6 x a4 sheets, post mounted with Community Noticeboard",22/04/2015,102518,"1,317.00",Revenue,White Hill Direct Ltd.,64098
Chorley Borough Council,http://statistics.data.gov.uk/id/local-authority/30UE,Central Support Services,1009,Health Environment & Neighbourhoods,Community Develop Initiatives,40185,Miscellaneous Expenses,5034,To remove & replace door on existing noticeboard Gillibrands estate as per site visit,22/04/2015,102518,120.00,Revenue,White Hill Direct Ltd.,64098
Chorley Borough Council,http://statistics.data.gov.uk/id/local-authority/30UE,Democratic Represent and  Mgnt,1007,Streetscene & Leisure Contracts,Consultants` Fees,40077,Services,5027,For curatorial consultancy services at Astley Hall in March 2015: 3  days  on site at Astley Hall @ 116.66 per day,15/04/2015,102452,349.98,Revenue,Whittle and Draper Fine Art,52271
Chorley Borough Council,http://statistics.data.gov.uk/id/local-authority/30UE,Payments of Precepts to Parish,1018,"Customer, ICT & Transactional",Parish Council Tax,4500,Revenue Account Transfers,Balance,Precepts,17/04/2015,102555,"34,600.00",Revenue,Whittle-le-Woods Parish Council,18602
Chorley Borough Council,http://statistics.data.gov.uk/id/local-authority/30UE,Payments of Precepts to Parish,1018,"Customer, ICT & Transactional",Parish Council Tax,4500,Revenue Account Transfers,Balance,Parish Precepts,17/04/2015,102521,"27,787.00",Revenue,Withnell Parish Council,16211
Chorley Borough Council,http://statistics.data.gov.uk/id/local-authority/30UE,Corporate Management,1008,"Customer, ICT & Transactional",Contributions Parish Councils,40144,Grants and Subscriptions,5031,Parish Precepts,17/04/2015,102521,"1,483.00",Revenue,Withnell Parish Council,16211
Chorley Borough Council,http://statistics.data.gov.uk/id/local-authority/30UE,Service Management & Support,1009,Streetscene & Leisure Contracts,Vehicle Maintenance,30045,Direct Transport Costs,5016,Carryout full service and MOT on PO52XVV as required,08/04/2015,102158,272.36,Revenue,Wrekamendid Services Ltd,21188
Chorley Borough Council,http://statistics.data.gov.uk/id/local-authority/30UE,Service Management & Support,1009,Streetscene & Leisure Contracts,Vehicle Maintenance,30045,Direct Transport Costs,5016,MOT,08/04/2015,102158,30.00,Revenue,Wrekamendid Services Ltd,21188
Chorley Borough Council,http://statistics.data.gov.uk/id/local-authority/30UE,Service Management & Support,1009,Streetscene & Leisure Contracts,Vehicle Maintenance,30045,Direct Transport Costs,5016,Carryout pre MOT inspection and take for MOT on NJ10OTW as required,10/04/2015,102320,495.24,Revenue,Wrekamendid Services Ltd,21188
Chorley Borough Council,http://statistics.data.gov.uk/id/local-authority/30UE,Service Management & Support,1009,Streetscene & Leisure Contracts,Vehicle Maintenance,30045,Direct Transport Costs,5016,MOT,10/04/2015,102320,45.00,Revenue,Wrekamendid Services Ltd,21188
Chorley Borough Council,http://statistics.data.gov.uk/id/local-authority/30UE,Corporate Management,1008,Streetscene & Leisure Contracts,Vehicle Maintenance,30045,Direct Transport Costs,5016,Carryout pre MOT and repairs on T481MNB as required,10/04/2015,102321,744.33,Revenue,Wrekamendid Services Ltd,21188
Chorley Borough Council,http://statistics.data.gov.uk/id/local-authority/30UE,Corporate Management,1008,Streetscene & Leisure Contracts,Vehicle Maintenance,30045,Direct Transport Costs,5016,MOT,10/04/2015,102321,30.00,Revenue,Wrekamendid Services Ltd,21188
Chorley Borough Council,http://statistics.data.gov.uk/id/local-authority/30UE,Unapportionable Central OHeads,1009,HR & Org. Development,Service Fees,40056,Services,5027,Occupational Health Fees September,15/04/2015,102481,145.80,Revenue,WWL NHS FT,66700
Chorley Borough Council,http://statistics.data.gov.uk/id/local-authority/30UE,Unapportionable Central OHeads,1009,HR & Org. Development,Service Fees,40056,Services,5027,Occupational Health Fees September,15/04/2015,102481,674.00,Revenue,WWL NHS FT,66700
